{"text_format":"1","workbook":"xlsx","n_sheets":9,"sheets":["Tabelle1","Disclaimer","Information how to use","A2L Calculator (above ground)","Berechnungen","Bezüge","Template Cold Room (ab. ground)","Pictures","QLAV & QLMV"],"not_rendered":{"charts":0,"images":22,"macros":1,"external_links":0,"defined_names":105,"comments":0,"pivot_tables":0},"unopened":[],"bounds":{"document_bytes":16777216,"sheet_cells":100000,"rows_first":2000,"rows_last":500,"rows_between":2000,"halvings":0,"cell_chars":16384,"cell_head_chars":4096},"cells_cut":0,"cells_raw":0,"read":"whole","date_system":"1900"}

{"sheet":"Tabelle1","index":0,"n_rows":18,"n_cols":7,"rows_kept":18,"cut":false,"hidden":true,"merged":[[5,1,6,2],[16,2,16,6],[7,1,8,1],[9,1,10,1],[11,1,13,1],[11,3,11,4],[7,5,13,5],[9,3,9,4],[7,3,7,4],[8,3,8,4],[5,3,5,6],[7,6,13,6]]}
[]
[]
[]
[]
[]
[null,"Kategorie des Zugangsbereiches",null,"Aufstellungsort-Klassifikationen"]
[null,null,null,"I","II","III","IV"]
[null,"a","Menschlicher Komfort","Nach C.2 und nicht mehr als m2^a x 1,5 oder nach C.3 und nicht mehr als m3^a x 1,5",null,"Keine Begrenzung der Füllmenge^c","Füllmenge des Kältemittels nicht mehr als m3^b x 1,5"]
[null,null,"Andere Anwendung","20% x LFL x Raumvolumen und nicht mehr als m2^a x 1,5 oder nach C.3 und nicht mehr als m3^bx1,5"]
[null,"b","Menschlicher Komfort","Nach C.2 und nicht mehr als m2^a x 1,5 oder nach C.3 und nicht mehr als m3^a x 1,5"]
[null,null,"Andere Anwendung","20% x LFL x Raumvolumen und nicht mehr als m2^a x 1,5 oder nach C.3 und nicht mehr als m3^bx1,5","20% x LFL x Raumvolumen und nicht mehr als 25 kg^c ider nach C.3 und nicht mehr als m3^b x 1,5"]
[null,"c","Menschlicher Komfort","Nach C.2 und nicht mehr als m2^a x 1,5 oder nach C.3 und nicht mehr als m3^a x 1,5"]
[null,null,"Andere Anwendung","20% x LFL x Raumvolumen und nicht mehr als m2^a x 1,5 oder nach C.3 und nicht mehr als m3^bx1,5","20% x LFL x Raumvolumen und nicht mehr als 25 kg^c ider nach C.3 und nicht mehr als m3^b x 1,5"]
[null,null,"< 1 Person pro 10m^2","20% x LFL x Raumvolumen und nicht mehr als 50kg^a oder nach C.3 und nicht mehr als m3^b x 1,5","Keine Begrenzung der Füllmenge^c"]
[null,"a","m2= 26m^3 x LFL"]
[null,"b","m3= 130m^3 x LFL"]
[null,"c","Für die Aufstellung im freien gilt EN 378-3:2016, 4.2 und für Maschinenräume gilt EN 378-3:2016, 4.3"]
[null,null,"m1 = 4m^3 x LFL"]

{"sheet":"Disclaimer","index":1,"n_rows":2,"n_cols":2,"rows_kept":2,"cut":false,"hidden":false,"merged":[[1,1,34,22]]}
[]
[null,"DISCLAIMER\nThis software/calculator endeavors to calculate the refrigerant charge limits of refrigerating systems and/or heat pump systems etc. in relation to their location, selected application and accessibility class according to annex C of EN378-1. The tool is meant to facilitate the identification of risks associated with the use of A2L refrigerants in refrigerating systems and/or heat pump systems etc. and suggests mitigation measures according to EN378-1 to manage the risk of refrigerating systems and/or heat pump systems etc. using A2L refrigerants in occupied spaces, as these must be tailored as the circumstances require, case by case.  \n \nIt remains your responsibility to validate the application. Copeland assumes no responsibility and or any subsequent liability for any claims or damages howsoever arising, in particular if appropriate risk management were not implemented adequately on your side. \n \nCopeland shall not be responsible for how any risk assessment is performed and utilized and shall not be responsible for its content or findings. You should note that nothing within any such assessment overrides any requirements needed to comply with the statutory obligations, as well as all associated regulations and common codes of practice."]

{"sheet":"Information how to use","index":2,"n_rows":82,"n_cols":13,"rows_kept":82,"cut":false,"hidden":false,"merged":[[77,2,77,7],[79,2,79,7],[81,2,81,7],[68,2,74,3],[1,1,2,1],[28,1,29,1],[49,1,50,1],[14,2,15,2],[16,2,20,2],[3,2,4,2],[44,2,47,2],[32,2,36,2],[28,2,29,6],[1,2,2,6],[49,2,50,3],[23,2,26,2],[8,2,9,2],[10,2,13,2],[5,2,7,2],[3,3,7,6],[66,2,67,3],[8,3,13,6],[42,3,47,3],[42,4,47,6],[35,3,36,3],[66,1,67,1],[14,3,20,6],[21,2,22,2],[21,3,26,6],[42,2,43,2],[31,4,36,6],[30,4,30,6],[37,3,41,3],[38,2,41,2],[37,4,41,6],[55,1,56,1],[58,1,59,1],[59,2,60,3],[55,2,56,3],[61,2,64,3]]}
[]
[null,"1.","Location classification of refrigerating systems"]
[]
[null,null,"Class IV","If all refrigerant-containing parts are located in a ventilated enclosure then the requirements for a class IV location shall apply. The ventilated enclosure shall fulfil the requirements of EN 378-2 and EN 378-3."]
[]
[null,null,"Ventilated enclosure"]
[]
[]
[null,null,"Class III","If all refrigerant-containing parts are located in a machinery room or open air then the requirements for a class III location shall apply. The machinery room shall fulfil the requirements of EN 378-3."]
[]
[null,null,"Machinery room or open air"]
[]
[]
[]
[null,null,"Class II","If all compressors and pressure vessels are either located in a machinery room or in the open air then the requirements for a class II location shall apply unless the system complies with the requirements of class III. Coils and pipework including valves may be located in an occupied space."]
[]
[null,null,"Compressors in machinery room or open air"]
[]
[]
[]
[]
[null,null,"Class I       ","If the refrigerating system or refrigerant-containing parts are located in the occupied space, then the system is considered to be of class I unless the system complies with the requirements of class II."]
[]
[null,null,"Mechanical equipment located within the occupied space",null,null,null,null,null,null,null,null,null,"  "]
[]
[]
[]
[]
[null,"2.","Access categories"]
[]
[null,null,"Categorie","General properties","Examples"]
[null,null,"General access","Rooms, parts of buildings, building where","Hospitals, courts or prisons, theatres, supermarkets, schools, lecture halls, public transport terminals, hotels, dwellings, restaurants"]
[null,null,"a","- sleeping facilities are provided"]
[null,null,null,"- people are restricted in their movement"]
[null,null,null,"- an uncontrolled number of people are present"]
[null,null,null,"- any person has access without being personally acquainted with the necessary safety precautions"]
[]
[null,null,"Supervised access","Rooms, parts of buildings, buildings where only a limited number of people may be assembled, some being necessarily acquainted with the general safety precautions of the establishment","Business or professional offices, laboratories, places for general manufacturing and where people work"]
[null,null,"b"]
[]
[]
[]
[null,null,"Authorized access","Rooms, parts of buildings, buildings where only authorized people have access, who are acquainted with general and special safety precautions of the establishment and where manufacturing, processing or storage of material or products take place","Manufacturing facilities, e.g. for chemicals, food, beverage, ice, ice-cream, refineries, cold stores, dairies, slaughterhouses, non-public areas in supermarkets"]
[]
[null,null,"c"]
[]
[]
[]
[]
[null,"3.","Application"]
[null,"3."]
[null,null,"Human Comfort","AC-systems, HP-systems"]
[null,null,"Other Application","MT-system, LT-system, Chiller"]
[null,null,"< 1 Person in 10m²","Valid for some location classification and access category c"]
[]
[null,"4.","Refrigerant"]
[]
[]
[null,"5."]
[null,null,"Room dimensions"]
[]
[null,null,"It should be noted that for the \"Human Comfort\" applications the floor space m² is decisive, for the other applications: \"Other Application\" and \"< 1 person in 10m² the room volume m³ is decisive for determining the refrigerant filling quantities."]
[]
[]
[]
[]
[null,"6.","Required refrigerant amount"]
[]
[null,null,"Minimum refrigerant charge can be entered in the column \"Required Refrigerant Charge\". The refrigerant charge calculator determines the maximum filling quantity for systems which are sealed at the factory (Fixed factory sealed systems*) and also the filling quantity for systems which are not in a factory sealed housing. It is also possible to calculate the minimum space required for the specified minimum amount of refrigerant. This function is available with \"Human Comfort\" application only. For \"other applications\", there is an extra refrigerant quantity bonus for \"sealed systems**\". "]
[]
[]
[]
[]
[]
[]
[]
[]
[null,null,"*Factory sealed systems: Firmly installed, factory closed, stand-alone air conditioners or heat pumps are specified, which do not require additional safety measures and are also independent of the room size."]
[]
[null,null,"**Sealed systems: Refrigerating system in which all refrigerant containing parts are made tight by welding, brazing or a similar permanent connection which may include capped valves and capped service ports that allow proper repair or disposal and which have a tested leakage rate of less than 3 grams per year under a pressure of at least a quarter of the maximum allowable pressure."]
[]
[null,null,"Sealed systems in accordance with EN 378–2 are equivalent to hermetically sealed systems with EN 16084 ."]

{"sheet":"A2L Calculator (above ground)","index":3,"n_rows":82,"n_cols":33,"rows_kept":82,"cut":false,"hidden":false,"merged":[[52,7,54,8],[52,9,54,10],[1,7,1,11],[30,7,30,11],[55,9,57,10],[55,7,57,8],[0,1,0,5],[8,2,11,5],[15,2,19,5],[20,2,21,5],[54,5,54,6],[24,2,25,5],[55,5,57,6],[62,5,62,6],[66,5,66,6],[55,3,57,4],[63,5,65,6],[67,5,69,6],[63,3,65,4],[67,3,69,4],[63,7,65,11],[59,2,60,12],[67,7,69,11]]}
[null,"Copeland Refrigerant Charge Calculator"]
[null,"Enter the location, access categories and refrigerant using the drop down list.",null,null,null,null,null,"Location Classification"]
[null," In addition, entries for the room dimensions and estimated refrigerant charge are also required."]
[null,"(See EN378-1 for reference and further details)."]
[]
[]
[null,null,"Location Classification:","Class I",null,null,null,null,null,null,null,null,null,null,null,null,null,null,null,null,null,null,null,null,null,null,1,{"$f":"IF(D7=\"Class I\",\"1\",IF(D7=\"Class II\",\"2\",IF(D7=\"Class III\",\"3\",\"4\")))","v":"1"},{"$f":"AB7&AB24","v":"1HC"},null,null,null,{"$f":"IF(D7=a,a,IF(D7=b,b,IF(D7=e,e,d)))","v":"Class I"}]
[null,null,null,null,null,null,null,null,null,null,null,null,null,null,null,null,null,null,null,null,null,null,null,null,null,null,2]
[null,null,{"$f":"IF(AG7=a,Bezüge!C4,IF('A2L Calculator (above ground)'!AG7=b,Bezüge!C5,IF('A2L Calculator (above ground)'!AG7=e,Bezüge!C6,Bezüge!C7)))","v":"Mechanical equipment located within the occupied space\nIf the refrigerating system or refrigerant-containing parts are located in the occupied space, then the system is considered to be of class I unless the system complies with the requirements of class II."},null,null,null,null,null,null,null,null,null,null,null,null,null,null,null,null,null,null,null,null,null,null,null,3]
[]
[]
[]
[]
[null,null,"Access Category:","a",null,null,null,null,null,null,null,null,null,null,null,null,null,null,null,null,null,null,null,null,null,null,null,{"$f":"IF(D14=\"a\",\"a\",IF(D14=\"b\",\"b\",\"c\"))","v":"a"},{"$f":"AB14&AB7","v":"a1"},null,null,null,{"$f":"IF(D14=f,f,IF(D14=g,g,h))","v":"a"}]
[]
[null,null,{"$f":"IF(AG14=f,Bezüge!C9,IF(AG14=g,Bezüge!C10,Bezüge!C11))","v":"Rooms, parts of buildings, building where\n— sleeping facilities are provided, people are restricted in their movement, an uncontrolled number of people are present, any person has access without being personally acquainted with the necessary safety precautions"}]
[]
[]
[]
[]
[null,"Examples:",{"$f":"IF(AG14=f,Bezüge!C13,IF(AG14=g,Bezüge!C14,Bezüge!C15))","v":"Hospitals, courts or prisons, theatres, supermarkets, schools, lecture halls, public transport termini, hotels, dwellings, restaurants"}]
[]
[]
[null,null,"Application:","Human Comfort",null,null,null,null,null,null,null,null,null,null,null,null,null,null,null,null,null,null,null,null,null,null,null,{"$f":"IF(D24=\"Human Comfort\",\"HC\",IF(D24=\"other application\",\"OA\",\"1Pers\"))","v":"HC"},{"$f":"IF(OR(AB24=\"OA\",AB24=\"1Pers\"),\"1\",\"\")","v":""},{"$f":"AC24&AB14&AB7","v":"a1"},null,null,{"$f":"IF(D24=i,i,IF(D24=j,j,k))","v":"Human Comfort"}]
[null,"Examples:",{"$f":"IF(AB24=\"HC\", \"Heatpump / Air Conditioning\",IF(AB24=\"oa\",\"Medium Temp. System / Low Temp. System / Chiller System etc.\",IF(AB24=\"1Pers\",\"WARNING: Only Valid for Location Class I or II and Access Category c\",\"\")))","v":"Heatpump / Air Conditioning"}]
[]
[]
[null,null,"Double-Click for more info:"]
[]
[]
[null,null,"Refrigerant:","R454C",{"$f":"IF(D31=l,Bezüge!D24,IF(D31=l,Bezüge!D32,IF(D31=m,Bezüge!D25,IF(D31=n,Bezüge!D26,IF(D31=o,Bezüge!D27,IF(D31=p,Bezüge!D28,IF(D31=q,Bezüge!D29,IF(D31=u,Bezüge!D30,IF(D31=w,Bezüge!D31,Bezüge!D32))))))))&\"                                             LFL:\")","v":"(GWP = 148)                                             LFL:"},{"$f":"IF(D31=l,Bezüge!C24,IF(D31=m,Bezüge!C25,IF(D31=n,Bezüge!C26,IF(D31=o,Bezüge!C27,IF(D31=p,Bezüge!C28,IF(D31=q,Bezüge!C29,IF(D31=u,Bezüge!C30,IF(D31=w,Bezüge!C31,Bezüge!C32))))))))","v":0.29299999999999998},null,"Access Category",null,null,null,null,null,null,null,null,null,null,null,null,null,null,null,null,null,null,null,{"$f":"IF(D31=\"R454C\",\"1\",IF(D31=\"R454A\",\"2\",IF(D31=\"R454B\",\"3\",IF(D31=\"R452B\",\"4\",IF(D31=\"R32\",\"5\",IF(D31=\"R455A\",\"6\",IF(D31=\"R152a\",\"7\",IF(D31=\"R1234yf\",\"8\",IF(D31=\"R1234ze\",\"9\",\"\")))))))))","v":"1"}]
[null,null,{"$f":"E31","v":"(GWP = 148)                                             LFL:"},{"$f":"LFL","v":0.29299999999999998}]
[null,null,"Number of rooms:",1]
[]
[null,null,"Room Dimensions / m:"]
[null,null,"Room 1:"]
[null,null,"Length:",10,"Height:",2.5]
[null,null,"Width:",10]
[]
[null,null,{"$f":"IF(D33>=2,\"Room 2:\",\"\")","v":""}]
[null,null,"Length:",0,"Height:",0]
[null,null,"Width:",0]
[]
[null,null,{"$f":"IF(D33=3,\"Room 3:\",\"\")","v":""}]
[null,null,"Length:",0,"Height:",0]
[null,null,"Width:",0]
[]
[null,null,"Height Factor:","Ceiling Mounted",{"$f":"IF(D48=Bezüge!B37,\"0.6\",IF(D48=Bezüge!B38,\"1\",IF(D48=Bezüge!B39,\"1.8\",\"2.2\")))","v":"2.2"},"Only for Human Comfort use"]
[null,null,{"$f":"IF(AB24=\"HC\",\"Actual Room Area:\",\"\")","v":"Actual Room Area:"},{"$f":"IF(AB24=\"HC\",Berechnungen!B37,\"\")","v":100}]
[null,null,{"$f":"IF(OR(AB24=\"OA\",AB24=\"1Pers\"),\"Actual Room Volume\",\"\")","v":""},{"$f":"IF(OR(AB24=\"OA\",AB24=\"1Pers\"),Berechnungen!B41,\"\")","v":""}]
[null,null,"Refrigerant Charge Limits / kg:"]
[null,null,"Required Refrigerant Charge / kg (optional):",2]
[null,null,null,null,null,null,null,{"$f":"IF(AND(AC7=\"1HC\",D52>Berechnungen!B21,D52<=Berechnungen!B22),\"Minimum floor area for a Non-Fixed Factory Sealed Single Packaged AC or Heat Pump Unit with a charge of \"&D52&\"kg\",\"\")","v":"Minimum floor area for a Non-Fixed Factory Sealed Single Packaged AC or Heat Pump Unit with a charge of 2kg"},null,{"$f":"IF(AND(AC7=\"1HC\",D52>Berechnungen!B21,D52<=Berechnungen!B22),\"Maximum Charge for a Non-Fixed Factory Sealed Single Packaged AC or Heat Pump Unit in a \"&A_2&\"m² room\",\"\")","v":"Maximum Charge for a Non-Fixed Factory Sealed Single Packaged AC or Heat Pump Unit in a 100m² room"}]
[]
[null,null,null,{"$f":"IF(Berechnungen!D27=\"1\",\"Non-Sealed System\",\"\")","v":""},null,{"$f":"IF(AND(Berechnungen!F5>'A2L Calculator (above ground)'!D56,Berechnungen!D27=\"1\"),\"Sealed System*\",\"\")","v":""}]
[null,null,null,{"$f":"IF(AB24=\"hc\",Berechnungen!B28,Berechnungen!B27)","v":11.427},null,{"$f":"IF(AND(Berechnungen!F5>'A2L Calculator (above ground)'!D56,Berechnungen!D27=\"1\"),Berechnungen!F5,\"\")","v":""},null,{"$f":"IF(AND(AC7=\"1HC\",D52>Berechnungen!B21,D52<=Berechnungen!B22),Berechnungen!B25,\"\")","v":12.410797393732546},null,{"$f":"IF(AND(AC7=\"1HC\",D52>Berechnungen!B21,D52<=Berechnungen!B22),Berechnungen!C24,\"\")","v":2.3439999999999999}]
[null,null,{"$f":"IF(AB24=\"hc\",\"EN 378 Appendix C2:\",\"EN 378 Appendix C1:\")","v":"EN 378 Appendix C2:"}]
[]
[null,null,null,{"$f":"IF(AND(OR(Berechnungen!G7=\"2c1Pers\",AB7=\"3\"), NOT(AB24=\"HC\")), Berechnungen!C17, \" \")","v":" "}]
[null,null,{"$f":"IF(AND(AB24=\"OA\")*AB7=2,Bezüge!B45,\"\")","v":""}]
[]
[null,null,"Additional filling quantities in conjunction with additional measures according to DIN EN 378"]
[null,null,null,"Non-Sealed System",null,{"$f":"IF(AND(Berechnungen!F5>'A2L Calculator (above ground)'!D56,Berechnungen!D27=\"1\"),\"Sealed System*\",\"\")","v":""}]
[null,null,null,{"$f":"IF('QLAV & QLMV'!A65=\"OAa1\",'QLAV & QLMV'!C63,IF('QLAV & QLMV'!A65=\"OAa2\",'QLAV & QLMV'!F63,IF('QLAV & QLMV'!A65=\"OAb1\",'QLAV & QLMV'!I63,IF('QLAV & QLMV'!A65=\"OAb2\",'QLAV & QLMV'!L63,IF('QLAV & QLMV'!A65=\"OAc1\",'QLAV & QLMV'!O63,IF('QLAV & QLMV'!A65=\"OAc2\",'QLAV & QLMV'!R63,IF('QLAV & QLMV'!A65=\"1Persc1\",'QLAV & QLMV'!U63,IF('A2L Calculator (above ground)'!AD24=\"1a3\",'QLAV & QLMV'!X63,IF('A2L Calculator (above ground)'!AD24=\"1b3\",'QLAV & QLMV'!Y63,IF('A2L Calculator (above ground)'!AD24=\"1c3\",'QLAV & QLMV'!Z63,IF('A2L Calculator (above ground)'!AD24=\"1a4\",'QLAV & QLMV'!AA63,IF('A2L Calculator (above ground)'!AD24=\"1b4\",'QLAV & QLMV'!AB63,IF('A2L Calculator (above ground)'!AD24=\"1c4\",'QLAV & QLMV'!AC63,IF('QLAV & QLMV'!A65=\"HCa1\",'QLAV & QLMV'!C91,IF('QLAV & QLMV'!A65=\"HCa2\",'QLAV & QLMV'!F91,IF('QLAV & QLMV'!A65=\"HCb1\",'QLAV & QLMV'!I91,IF('QLAV & QLMV'!A65=\"HCb2\",'QLAV & QLMV'!L91,IF('QLAV & QLMV'!A65=\"HCc1\",'QLAV & QLMV'!O91,IF('QLAV & QLMV'!A65=\"HCc2\",'QLAV & QLMV'!R91,IF('QLAV & QLMV'!A65=\"HCa3\",'QLAV & QLMV'!T91,IF('QLAV & QLMV'!A65=\"HCb3\",'QLAV & QLMV'!U91,IF('QLAV & QLMV'!A65=\"HCc3\",'QLAV & QLMV'!V91,IF('QLAV & QLMV'!A65=\"HCa4\",'QLAV & QLMV'!W91,IF('QLAV & QLMV'!A65=\"HCb4\",'QLAV & QLMV'!X91,IF('QLAV & QLMV'!A65=\"HCc4\",'QLAV & QLMV'!Y91,\"N/A\")))))))))))))))))))))))))","v":11.427},null,{"$f":"IF('QLAV & QLMV'!A65=\"OAa1\",'QLAV & QLMV'!C62,IF('QLAV & QLMV'!A65=\"OAa2\",'QLAV & QLMV'!F62,IF('QLAV & QLMV'!A65=\"OAb1\",'QLAV & QLMV'!I62,IF('QLAV & QLMV'!A65=\"OAb2\",'QLAV & QLMV'!L62,IF('QLAV & QLMV'!A65=\"OAc1\",'QLAV & QLMV'!O62,IF('QLAV & QLMV'!A65=\"OAc2\",'QLAV & QLMV'!R62,IF('QLAV & QLMV'!A65=\"1Persc1\",'QLAV & QLMV'!U62,IF('A2L Calculator (above ground)'!AD24=\"1a3\",'QLAV & QLMV'!X62,IF('A2L Calculator (above ground)'!AD24=\"1b3\",'QLAV & QLMV'!Y62,IF('A2L Calculator (above ground)'!AD24=\"1c3\",'QLAV & QLMV'!Z62,IF('A2L Calculator (above ground)'!AD24=\"1a4\",'QLAV & QLMV'!AA62,IF('A2L Calculator (above ground)'!AD24=\"1b4\",'QLAV & QLMV'!AB62,IF('A2L Calculator (above ground)'!AD24=\"1c4\",'QLAV & QLMV'!AC62,\"\")))))))))))))","v":""},null,"QLMV: Charge density of refrigerant that would result in a concentration equal to the RCL in a room of non-air tight construction with a moderately severe refrigerant leak. See C.3 for the use of Quantity Limit with Minimum Ventilation (QLMV) to manage risk for systems in occupied spaces not below ground level where the level of ventilation is not sufficient to disperse the leaked refrigerant within 15 min. The calculation is based on an opening of 0,0032 m2  and a leak rate of 2,78 g/s. ATTENTION: The QLMV value is not valid for cold rooms application!!!"]
[null,null,"EN 378 Appendix C3 (QLMV):"]
[]
[null,null,null,"Non-Sealed System",null,{"$f":"IF(AND(Berechnungen!F5>'A2L Calculator (above ground)'!D56,Berechnungen!D27=\"1\"),\"Sealed System*\",\"\")","v":""}]
[null,null,null,{"$f":"IF('QLAV & QLMV'!A65=\"OAa1\",'QLAV & QLMV'!D63,IF('QLAV & QLMV'!A65=\"OAa2\",'QLAV & QLMV'!G63,IF('QLAV & QLMV'!A65=\"OAb1\",'QLAV & QLMV'!J63,IF('QLAV & QLMV'!A65=\"OAb2\",'QLAV & QLMV'!M63,IF('QLAV & QLMV'!A65=\"OAc1\",'QLAV & QLMV'!P63,IF('QLAV & QLMV'!A65=\"OAc2\",'QLAV & QLMV'!S63,IF('QLAV & QLMV'!A65=\"1Persc1\",'QLAV & QLMV'!V63,IF('A2L Calculator (above ground)'!AD24=\"1a3\",'QLAV & QLMV'!Y63,IF('A2L Calculator (above ground)'!AD24=\"1b3\",'QLAV & QLMV'!Z63,IF('A2L Calculator (above ground)'!AD24=\"1c3\",'QLAV & QLMV'!AA63,IF('A2L Calculator (above ground)'!AD24=\"1a4\",'QLAV & QLMV'!AB63,IF('A2L Calculator (above ground)'!AD24=\"1b4\",'QLAV & QLMV'!AC63,IF('A2L Calculator (above ground)'!AD24=\"1c4\",'QLAV & QLMV'!AC63,IF('QLAV & QLMV'!A65=\"HCa1\",'QLAV & QLMV'!D91,IF('QLAV & QLMV'!A65=\"HCa2\",'QLAV & QLMV'!G91,IF('QLAV & QLMV'!A65=\"HCb1\",'QLAV & QLMV'!J91,IF('QLAV & QLMV'!A65=\"HCb2\",'QLAV & QLMV'!M91,IF('QLAV & QLMV'!A65=\"HCc1\",'QLAV & QLMV'!P91,IF('QLAV & QLMV'!A65=\"HCc2\",'QLAV & QLMV'!S91,IF('QLAV & QLMV'!A65=\"HCa3\",'QLAV & QLMV'!U91,IF('QLAV & QLMV'!A65=\"HCb3\",'QLAV & QLMV'!V91,IF('QLAV & QLMV'!A65=\"HCc3\",'QLAV & QLMV'!W91,IF('QLAV & QLMV'!A65=\"HCa4\",'QLAV & QLMV'!X91,IF('QLAV & QLMV'!A65=\"HCb4\",'QLAV & QLMV'!Y91,IF('QLAV & QLMV'!A65=\"HCc4\",'QLAV & QLMV'!Y91,\"N/A\")))))))))))))))))))))))))","v":11.427},null,{"$f":"IF('QLAV & QLMV'!A65=\"OAa1\",'QLAV & QLMV'!D62,IF('QLAV & QLMV'!A65=\"OAa2\",'QLAV & QLMV'!G62,IF('QLAV & QLMV'!A65=\"OAb1\",'QLAV & QLMV'!J62,IF('QLAV & QLMV'!A65=\"OAb2\",'QLAV & QLMV'!M62,IF('QLAV & QLMV'!A65=\"OAc1\",'QLAV & QLMV'!P62,IF('QLAV & QLMV'!A65=\"OAc2\",'QLAV & QLMV'!S62,IF('QLAV & QLMV'!A65=\"1Persc1\",'QLAV & QLMV'!V62,IF('A2L Calculator (above ground)'!AC14=\"a3\",'QLAV & QLMV'!Y62,IF('A2L Calculator (above ground)'!AC14=\"b3\",'QLAV & QLMV'!Z62,IF('A2L Calculator (above ground)'!AC14=\"c3\",'QLAV & QLMV'!AA62,IF('A2L Calculator (above ground)'!AC14=\"a4\",'QLAV & QLMV'!AB62,IF('A2L Calculator (above ground)'!AC14=\"b4\",'QLAV & QLMV'!AC62,IF('A2L Calculator (above ground)'!AC14=\"c4\",'QLAV & QLMV'!AD62,\"\")))))))))))))","v":""},null,"QLAV: Charge density of refrigerant that when exceeded creates an instantaneous dangerous situation, if the total charge leaked within the occupied space. See C.3 for the use of Quantity Limit with Additional Ventilation (QLAV) to manage risk for systems in occupied spaces where the level of ventilation is sufficient to disperse the leaked refrigerant within 15 min."]
[null,null,"EN 378 Appendix C3 (QLAV):"]
[]
[null,null,"Attention!"]
[null,null,"These alternative provisions can only be used for an occupied space which fulfils all of following conditions:"]
[null,null,"- systems where the refrigerant is classified as A1 or A2L according to Annex E;"]
[null,null,"- systems where the refrigerant charge does not exceed 150 kg and does not exceed 1,5 × m3 for A2L refrigerants;"]
[null,null,"- system location is class II in accordance with 5.3;"]
[null,null,"- systems where the heat exchanger in the indoor unit and the control of the system are designed to prevent damage due to ice formation;"]
[null,null,"- systems where the refrigerant-containing parts of the indoor unit are protected against fan breakage or the fan is designed to prevent breakage;"]
[null,null,"- systems where only permanent joints are used in the occupied space in question except for site-made joints directly connecting the indoor unit to the piping;"]
[null,null,"- systems where the refrigerant-containing pipes in the occupied space in question are installed in such way that it is protected against accidental damage in accordance with EN 378-2:2016, 6.2.3.3.4 and EN 378-3:2016, 6.2;"]
[null,null,"- alternative provisions to ensure safety are provided in accordance with C.3.2.2 and C.3.2.3;"]
[null,null,"- doors of the occupied space are not tight-fitting;"]
[null,null,"- effect of flow down is mitigated in accordance with C.3.2.4."]

{"sheet":"Berechnungen","index":4,"n_rows":41,"n_cols":10,"rows_kept":41,"cut":false,"hidden":true,"merged":[[18,1,18,4],[26,1,26,2],[27,1,30,2]]}
[]
[]
[null,null,"nach c.2",null,null,"m1","m2","m3",null,"Potenzen"]
[null,"m max","2,5 x LFL^5/4 x h0 x a^1/2",null,null,"4xLFL","26xLFL","130xLFL","LFL^5/4",{"$f":"LFL^1.25","v":0.21556811565491618}]
[null,"A min","m^2/(2,5xLFL^5/4xh0)^2",null,null,{"$f":"4*LFL*1.5","v":1.758},{"$f":"26*LFL","v":7.6179999999999994},{"$f":"130*LFL","v":38.089999999999996},"A^1/2",{"$f":"A_2^0.5","v":10}]
[]
[null,"C.2","m2^a*1,5","C.3","m3^a*1,5",null,{"$f":"'A2L Calculator (above ground)'!AB7&'A2L Calculator (above ground)'!AB14&'A2L Calculator (above ground)'!AB24","v":"1aHC"}]
["A / MenKom / I & II",{"$f":"2.5*J4*HF*J5","v":11.856246361020391},{"$f":"26*LFL*1.5","v":11.427},{"$f":"'A2L Calculator (above ground)'!D52/'A2L Calculator (above ground)'!D50","v":{"$error":"#VALUE!"}},{"$f":"130*LFL*1.5","v":57.134999999999991},{"$f":"IF(AND(G7=\"1aHC\",A_1>A__2),A__2,A_1)","v":11.427},{"$f":"IF(AND(G7=\"2aHC\",A_1>A__2),A__2,A_1)","v":11.856246361020391},{"$f":"IF(AND($G$7=\"1aHC\",$F$8<$F$5),$F$5,$F$8)","v":11.427},{"$f":"IF(AND($G$7=\"2aHC\",$G$8<$F$5),$F$5,$G$8)","v":11.856246361020391}]
["A / OthApp / I & II",{"$f":"0.2*LFL*'A2L Calculator (above ground)'!D50","v":{"$error":"#VALUE!"}},{"$f":"26*LFL*1.5","v":11.427},{"$f":"'A2L Calculator (above ground)'!D52/'A2L Calculator (above ground)'!D50","v":{"$error":"#VALUE!"}},57.134999999999991,{"$f":"IF(AND(G7=\"1aOA\",B_1>B_2),B_2,B_1)","v":{"$error":"#VALUE!"}},{"$f":"IF(AND(G7=\"2aOA\",B_1>B_2),B_2,B_1)","v":{"$error":"#VALUE!"}}]
["B / MenKom / I & II",{"$f":"2.5*J4*HF*J5","v":11.856246361020391},{"$f":"26*LFL*1.5","v":11.427},{"$f":"'A2L Calculator (above ground)'!D52/'A2L Calculator (above ground)'!D50","v":{"$error":"#VALUE!"}},57.134999999999991,{"$f":"IF(AND(G7=\"1bHC\",C_1>C_2),C_2,C_1)","v":11.856246361020391},{"$f":"IF(AND(G7=\"2bHC\",C_1>C_2),C_2,C_1)","v":11.856246361020391},{"$f":"IF(AND($G$7=\"1bHC\",$F$10<$F$5),$F$5,$F$10)","v":11.856246361020391},{"$f":"IF(AND($G$7=\"2bHC\",$G$10<$F$5),$F$5,$G$10)","v":11.856246361020391}]
["B / OthApp / I",{"$f":"0.2*LFL*'A2L Calculator (above ground)'!D50","v":{"$error":"#VALUE!"}},{"$f":"26*LFL*1.5","v":11.427},{"$f":"'A2L Calculator (above ground)'!D52/'A2L Calculator (above ground)'!D50","v":{"$error":"#VALUE!"}},57.134999999999991,{"$f":"IF(AND(G7=\"1bOA\",D_1>D_2),D_2,D_1)","v":{"$error":"#VALUE!"}}]
["B / OthApp / II",{"$f":"0.2*LFL*'A2L Calculator (above ground)'!D50","v":{"$error":"#VALUE!"}},25,{"$f":"'A2L Calculator (above ground)'!D52/'A2L Calculator (above ground)'!D50","v":{"$error":"#VALUE!"}},57.134999999999991,{"$f":"IF(AND(G7=\"2bOA\",E_1>E_2),E_2,E_1)","v":{"$error":"#VALUE!"}}]
["C / MenKom / I & II",{"$f":"2.5*J4*HF*J5","v":11.856246361020391},{"$f":"26*LFL*1.5","v":11.427},{"$f":"'A2L Calculator (above ground)'!D52/'A2L Calculator (above ground)'!D50","v":{"$error":"#VALUE!"}},57.134999999999991,{"$f":"IF(AND(G7=\"1cHC\",F_1>F_2),F_2,F_1)","v":11.856246361020391},{"$f":"IF(AND(G7=\"2cHC\",F_1>F_2),F_2,F_1)","v":11.856246361020391},{"$f":"IF(AND($G$7=\"1cHC\",$F$13<$F$5),$F$5,$F$13)","v":11.856246361020391},{"$f":"IF(AND($G$7=\"2cHC\",$G$13<$F$5),$F$5,$G$13)","v":11.856246361020391}]
["C / OthApp / I",{"$f":"0.2*LFL*'A2L Calculator (above ground)'!D50","v":{"$error":"#VALUE!"}},{"$f":"26*LFL*1.5","v":11.427},{"$f":"'A2L Calculator (above ground)'!D52/'A2L Calculator (above ground)'!D50","v":{"$error":"#VALUE!"}},57.134999999999991,{"$f":"IF(AND(G7=\"1cOA\",G_1>G_2),G_2,G_1)","v":{"$error":"#VALUE!"}}]
["C / OthApp / II",{"$f":"0.2*LFL*'A2L Calculator (above ground)'!D50","v":{"$error":"#VALUE!"}},25,{"$f":"'A2L Calculator (above ground)'!D52/'A2L Calculator (above ground)'!D50","v":{"$error":"#VALUE!"}},57.134999999999991,{"$f":"IF(AND(G7=\"2cOA\",H_1>H_2),H_2,H_1)","v":{"$error":"#VALUE!"}}]
["C / <1 Pers / I",{"$f":"0.2*LFL*'A2L Calculator (above ground)'!D50","v":{"$error":"#VALUE!"}},50,{"$f":"'A2L Calculator (above ground)'!D52/'A2L Calculator (above ground)'!D50","v":{"$error":"#VALUE!"}},57.134999999999991,{"$f":"IF(AND(G7=\"1c1Pers\",I_1>I_2),I_2,I_1)","v":{"$error":"#VALUE!"}}]
["C / <1 Pers / II","No Charge Restriction","For open air, FprEN 378–3:2016, 4.2 applies and, for machinery rooms, FprEN 378–3:2016, 4.3 applies."]
["III","No Charge Restriction","For open air, FprEN 378–3:2016, 4.2 applies and, for machinery rooms, FprEN 378–3:2016, 4.3 applies."]
["IV",{"$f":"130*LFL*1.5","v":57.134999999999991}]
[]
["4xLFL",{"$f":"4*LFL","v":1.1719999999999999}]
["8xLFL",{"$f":"8*LFL","v":2.3439999999999999}]
[]
["m Max",{"$f":"0.25*A_2*LFL*2.2","v":16.114999999999998},{"$f":"IF(B24<B21,B21,MIN(B24,B22))","v":2.3439999999999999}]
["A Min",{"$f":"'A2L Calculator (above ground)'!D52/(0.25*LFL*2.2)","v":12.410797393732546}]
[]
["Appendix C1:",{"$f":"IF(G7=\"1aOA\",F9,IF(G7=\"2aOA\",G9,IF(G7=\"1bOA\",F11,IF(G7=\"2bOA\",F12,IF(G7=\"1cOA\",F14,IF(G7=\"2cOA\",F15,IF(G7=\"1c1Pers\",F16,IF(G7=\"2c1Pers\",B17,IF('A2L Calculator (above ground)'!AB7=\"3\",Berechnungen!B18,IF('A2L Calculator (above ground)'!AB7=\"4\",L_1,\"N/A\"))))))))))","v":"N/A"},null,{"$f":"IF(G7=\"1aOA\",\"1\",IF(G7=\"2aOA\",\"1\",IF(G7=\"1bOA\",\"1\",IF(G7=\"2bOA\",\"1\",IF(G7=\"1cOA\",\"1\",IF(G7=\"2cOA\",\"1\",IF(G7=\"1c1Pers\",\"1\",\"XXXXX\")))))))","v":"XXXXX"}]
["Appendix C2:",{"$f":"IF(G7=\"1aHC\",H8,IF(G7=\"2aHC\",G8,IF(G7=\"1bHC\",H10,IF(G7=\"2bHC\",G10,IF(G7=\"1cHC\",H13,IF(G7=\"2cHC\",G13,IF('A2L Calculator (above ground)'!AB7=\"3\",Berechnungen!B18,IF('A2L Calculator (above ground)'!AB7=\"4\",L_1,\"N/A\"))))))))","v":11.427},null,{"$f":"IF(G7=\"1aHC\",\"1\",IF(G7=\"1bHC\",\"1\",IF(G7=\"1cHC\",\"1\",\"XXX\")))","v":"1"}]
[]
[]
[]
[]
["Fläche/Volumen","A2L-Rechner","Cold Room"]
["Room 1",{"$f":"'A2L Calculator (above ground)'!D37*'A2L Calculator (above ground)'!D38","v":100},{"$f":"'Template Cold Room (ab. ground)'!E26*'Template Cold Room (ab. ground)'!E27","v":250},null,{"$f":"0.2*LFLL*'Template Cold Room (ab. ground)'!D37","v":431},25]
["Room 2",{"$f":"'A2L Calculator (above ground)'!D41*'A2L Calculator (above ground)'!D42","v":0},{"$f":"'Template Cold Room (ab. ground)'!E29*'Template Cold Room (ab. ground)'!E30","v":0}]
["Room 3",{"$f":"'A2L Calculator (above ground)'!D45*'A2L Calculator (above ground)'!D46","v":0},{"$f":"'Template Cold Room (ab. ground)'!E32*'Template Cold Room (ab. ground)'!E33","v":0}]
[null,{"$f":"MIN(IF(B34:B36<>0,B34:B36))","v":100},{"$f":"MIN(IF(C34:C36<>0,C34:C36))","v":250}]
["Volume 1",{"$f":"'A2L Calculator (above ground)'!D37*'A2L Calculator (above ground)'!F37*'A2L Calculator (above ground)'!D38","v":250},{"$f":"'Template Cold Room (ab. ground)'!E26*'Template Cold Room (ab. ground)'!H26*'Template Cold Room (ab. ground)'!E27","v":5000}]
["Volume 2",{"$f":"'A2L Calculator (above ground)'!D41*'A2L Calculator (above ground)'!D42*'A2L Calculator (above ground)'!F41","v":0},{"$f":"'Template Cold Room (ab. ground)'!E29*'Template Cold Room (ab. ground)'!H29*'Template Cold Room (ab. ground)'!E30","v":0}]
["Volume 3",{"$f":"'A2L Calculator (above ground)'!D45*'A2L Calculator (above ground)'!D46*'A2L Calculator (above ground)'!F45","v":0},{"$f":"'Template Cold Room (ab. ground)'!E32*'Template Cold Room (ab. ground)'!H32*'Template Cold Room (ab. ground)'!E33","v":0}]
[null,{"$f":"MIN(IF(B38:B40<>0,B38:B40))","v":250},{"$f":"MIN(IF(C38:C40<>0,C38:C40))","v":5000}]

{"sheet":"Bezüge","index":5,"n_rows":45,"n_cols":4,"rows_kept":45,"cut":false,"hidden":true,"merged":[]}
[]
[]
[null,"Aufstellungsort Klassifikationen"]
[null,"Class I","Mechanical equipment located within the occupied space\nIf the refrigerating system or refrigerant-containing parts are located in the occupied space, then the system is considered to be of class I unless the system complies with the requirements of class II."]
[null,"Class II","Compressors in machinery room or open air\nIf all compressors and pressure vessels are either located in a machinery room or in the open air then the requirements for a class II location shall apply unless the system complies with the requirements of class III. Coils and pipework including valves may be located in an occupied space."]
[null,"Class III","Machinery room or open air\nIf all refrigerant-containing parts are located in a machinery room or open air then the requirements for a class III location shall apply. The machinery room shall fulfil the requirements of EN 378-3."]
[null,"Class IV","Ventilated enclosure\nIf all refrigerant-containing parts are located in a ventilated enclosure then the requirements for a class IV location shall apply. The ventilated enclosure shall fulfil the requirements of EN 378-2 and EN 378-3."]
[]
[null,"a","Rooms, parts of buildings, building where\n— sleeping facilities are provided, people are restricted in their movement, an uncontrolled number of people are present, any person has access without being personally acquainted with the necessary safety precautions"]
[null,"b","Rooms, parts of buildings, buildings where only a limited number of people may be assembled, some being necessarily acquainted with the general safety precautions of the establishment"]
[null,"c","Rooms, parts of buildings, buildings where only authorized persons have access, who are acquainted with general and special safety precautions of the establishment and where manufacturing, processing or storage of material or products take place"]
[]
[null,"example","Hospitals, courts or prisons, theatres, supermarkets, schools, lecture halls, public transport termini, hotels, dwellings, restaurants"]
[null,"example","Business or professional offices, laboratories, places for general manufacturing and where people work"]
[null,"example","Manufacturing facilities, e.g. for chemicals, food, beverage, ice, ice-cream, refineries, cold stores, dairies, abattoirs, non-public areas in supermarkets"]
[]
[null,"Aplication"]
[null,"Human Comfort"]
[null,"Other Application"]
[null,"< 1 Person per 10m²"]
[]
[null,"Refrigerant"]
[null,"Fluid","LFL"]
[null,"R1234yf",0.28899999999999998,"(GWP = 4)"]
[null,"R454C",0.29299999999999998,"(GWP = 148)"]
[null,"R454A",0.27800000000000002,"(GWP = 239)"]
[null,"R454B",0.30299999999999999,"(GWP = 466)"]
[null,"R452B",0.31,"(GWP = 698)"]
[null,"R32",0.307,"(GWP = 675)"]
[null,"R455A",0.43099999999999999,"(GWP = 146)"]
[null,"R152a",0.13,"(GWP = 120)"]
[null,"R1234ze",0.30299999999999999,"(GWP = 6)"]
[]
[]
[]
[null,"Height Factor"]
[null,"Floor Location"]
[null,"Window Mounted"]
[null,"Wall Mounted"]
[null,"Ceiling Mounted"]
[]
[]
[null,"Specified filling quantity is permitted for this application under these conditions, as required filling quantity is < 4*LFL*1.5"]
[]
[null,"*Sealed system: Refrigerating system in which all refrigerant containing parts are made tight by welding, brazing or a similar permanent connection which may include capped valves and capped service ports that allow proper repair or disposal and which have a tested leakage rate of less than 3 grams per year under a pressure of at least a quarter of the maximum allowable pressure"]

{"sheet":"Template Cold Room (ab. ground)","index":6,"n_rows":55,"n_cols":22,"rows_kept":55,"cut":false,"hidden":true,"merged":[[50,5,50,6],[50,8,60,25],[51,2,52,2],[51,3,52,4],[51,5,52,6],[53,5,53,6],[54,2,55,2],[54,3,55,4],[54,5,55,6],[41,12,43,15],[42,7,43,10],[43,5,43,6],[44,2,47,2],[44,3,46,4],[44,5,46,6],[44,8,46,9],[44,13,46,14],[47,3,48,6],[1,1,2,14],[8,5,11,12],[13,5,17,9],[13,10,17,12],[20,5,20,9],[20,10,20,14]]}
[]
[null,"Emerson A2L -Calculator"]
[]
[]
[null,"Enter the Location, Access Categories and Refrigerant using the drop down list. Type in the room dimensions and estimated refrigerant charge."]
[null,"(Always refer to the full EN 378:2016 standard to ensure all the necessary requirements are fulfilled)"]
[]
[]
[null,null,"Location Classification:","Class II",null,{"$f":"IF(V9=a,Bezüge!C4,IF('Template Cold Room (ab. ground)'!V9=b,Bezüge!C5,IF('Template Cold Room (ab. ground)'!V9=e,Bezüge!C6,Bezüge!C7)))","v":"Compressors in machinery room or open air\nIf all compressors and pressure vessels are either located in a machinery room or in the open air then the requirements for a class II location shall apply unless the system complies with the requirements of class III. Coils and pipework including valves may be located in an occupied space."},null,null,null,null,null,null,null,null,null,null,{"$f":"IF(D9=\"Class I\",\"1\",IF(D9=\"Class II\",\"2\",IF(D9=\"Class III\",\"3\",\"4\")))","v":"2"},{"$f":"Q9&Q21","v":"2OA"},null,null,null,{"$f":"IF(D9=a,a,IF(D9=b,b,IF(D9=e,e,d)))","v":"Class II"}]
[]
[]
[]
[null,null,null,null,null,null,null,null,null,null,"Examples:"]
[null,null,"Access Category:","c",null,{"$f":"IF(V14=f,Bezüge!C9,IF(V14=g,Bezüge!C10,Bezüge!C11))","v":"Rooms, parts of buildings, buildings where only authorized persons have access, who are acquainted with general and special safety precautions of the establishment and where manufacturing, processing or storage of material or products take place"},null,null,null,null,{"$f":"IF(V14=f,Bezüge!C13,IF(V14=g,Bezüge!C14,Bezüge!C15))","v":"Manufacturing facilities, e.g. for chemicals, food, beverage, ice, ice-cream, refineries, cold stores, dairies, abattoirs, non-public areas in supermarkets"},null,null,null,null,null,{"$f":"IF(D14=\"a\",\"a\",IF(D14=\"b\",\"b\",\"c\"))","v":"c"},{"$f":"Q14&Q9","v":"c2"},null,null,null,{"$f":"IF(D14=f,f,IF(D14=g,g,h))","v":"c"}]
[]
[]
[]
[]
[]
[null,null,null,null,null,"Examples:"]
[null,null,"Application:","Other Application",null,{"$f":"IF(Q21=\"HC\", \"Heatpump, Air Conditioning\",IF(Q21=\"oa\",\"MT-System, LT-System, Chiller System etc.\",IF(Q21=\"1Pers\",\"WARNING: Only Valid for Location Class I or II and Access Category c\",\"\")))","v":"MT-System, LT-System, Chiller System etc."},null,null,null,null,null,null,null,null,null,null,{"$f":"IF(D21=\"Human Comfort\",\"HC\",IF(D21=\"other application\",\"OA\",\"1Pers\"))","v":"OA"},{"$f":"IF(OR(Q21=\"OA\",Q21=\"1Pers\"),\"1\",\"\")","v":"1"},{"$f":"R21&Q14&Q9","v":"1c2"},null,null,{"$f":"IF(D21=i,i,IF(D21=j,j,k))","v":"Other Application"}]
[null,null,null,null,null,"LFL:"]
[null,null,"Refrigerant:","R455A",{"$f":"IF(D23=l,Bezüge!D24,IF(D23=m,Bezüge!D25,IF(D23=n,Bezüge!D26,IF(D23=o,Bezüge!D27,IF(D23=p,Bezüge!D28,IF(D23=q,Bezüge!D29,IF(D23=u,Bezüge!D30,IF(D23=w,Bezüge!D31,Bezüge!D32))))))))","v":"(GWP = 146)"},{"$f":"IF(D23=l,Bezüge!C24,IF(D23=m,Bezüge!C25,IF(D23=n,Bezüge!C26,IF(D23=o,Bezüge!C27,IF(D23=p,Bezüge!C28,IF(D23=q,Bezüge!C29,IF(D23=u,Bezüge!C30,IF(D23=w,Bezüge!C31,Bezüge!C32))))))))","v":0.43099999999999999},null,null,null,null,null,null,null,null,null,null,{"$f":"IF(D23=\"R454C\",\"1\",IF(D23=\"R454A\",\"2\",IF(D23=\"R454B\",\"3\",IF(D23=\"R452B\",\"4\",IF(D23=\"R32\",\"5\",IF(D23=\"R455A\",\"6\",IF(D23=\"R152a\",\"7\",IF(D23=\"R1234yf\",\"8\",IF(D23=\"R1234ze\",\"9\",\"\")))))))))","v":"6"}]
[]
[null,"Room Dimensions / m:"]
[null,null,"Room 1:","Length:",5,null,"Height:",20]
[null,null,null,"Width:",50]
[]
[null,null,"Room 2:","Length:",null,null,"Height:"]
[null,null,null,"Widht:"]
[]
[null,null,"Room 3:","Length:",null,null,"Height:"]
[null,null,null,"Widht:"]
[]
[null,null,null,null,null,null,"Height Factor:","Window Mounted",{"$f":"IF(H35=Bezüge!B37,\"0,6\",IF(H35=Bezüge!B38,\"1\",IF(H35=Bezüge!B39,\"1,8\",\"2,2\")))","v":"1"},"Only for Human Comfort use"]
[null,null,{"$f":"IF(Q21=\"HC\",\"Actual Room Area:\",\"\")","v":""},{"$f":"IF(Q21=\"HC\",Berechnungen!B37,\"\")","v":""}]
[null,null,{"$f":"IF(OR(Q21=\"OA\",Q21=\"1Pers\"),\"Actual Room Volume\",\"\")","v":"Actual Room Volume"},{"$f":"IF(OR(Q21=\"OA\",Q21=\"1Pers\"),Berechnungen!C41,\"\")","v":5000}]
[]
[null,"Refrigerant Charge Limits / kg:",null,null,null,null,null,null,null,null,null,null,null,null,null,null,"m²"]
[]
[null,null,"Required Refrigerant Charge / kg (optional):",20]
[null,null,null,null,null,null,null,null,null,null,null,null,{"$f":"IF(AND(R9=\"1HC\",D41>Berechnungen!B21,D41<=Berechnungen!B22),\"Minimum floor area for a Non-Fixed Factory Sealed Single Packaged AC or Heat Pump Unit with a charge of \"&D41&\"kg\",\"\")","v":""}]
[null,null,null,null,null,null,null,{"$f":"IF(AND(R9=\"1HC\",D41>Berechnungen!B21,D41<=Berechnungen!B22),\"Maximum Charge for a Non-Fixed Factory Sealed Single Packaged AC or Heat Pump Unit in a \"&A_2&\"m² room\",\"\")","v":""}]
[null,null,null,{"$f":"IF(Berechnungen!D27=\"1\",\"Non-Sealed System\",\"\")","v":""},null,{"$f":"IF(AND(Berechnungen!F5>'Template Cold Room (ab. ground)'!D45,Berechnungen!D27=\"1\"),\"Sealed System\",\"\")","v":""}]
[null,null,{"$f":"IF(Q21=\"hc\",\"EN 378 Appendix C2:\",\"EN 378 Appendix C1:\")","v":"EN 378 Appendix C1:"},{"$f":"IF(Berechnungen!E34<Berechnungen!F34,Berechnungen!E34,Berechnungen!F34)","v":25},null,{"$f":"IF(AND(Berechnungen!F5>'Template Cold Room (ab. ground)'!D45,Berechnungen!D27=\"1\"),Berechnungen!F5,\"\")","v":""},null,null,{"$f":"IF(AND(R9=\"1HC\",D41>Berechnungen!B21,D41<=Berechnungen!B22),Berechnungen!C24,\"\")","v":""},null,null,null,null,{"$f":"IF(AND(R9=\"1HC\",D41>Berechnungen!B21,D41<=Berechnungen!B22),Berechnungen!B25,\"\")","v":""}]
[]
[]
[null,null,null,{"$f":"IF(OR(Berechnungen!G7=\"2c1Pers\",Q9=\"3\"),Berechnungen!C17,\" \")","v":" "}]
[]
[null,null,"Additional filling quantities in conjunction with additional measures according to DIN EN 378"]
[null,null,null,"Non-Sealed System",null,{"$f":"IF(AND(Berechnungen!F5>'Template Cold Room (ab. ground)'!D45,Berechnungen!D27=\"1\"),\"Sealed System\",\"\")","v":""},null,null,"Systems where the rated cooling (heating) capacity of the indoor unit is not more than 25 % of the total cooling (heating) capacity of the outdoor unit systems and where pipes serving equipment in the occupied space in question are not oversized relative to the capacity of that equipment, where the heat exchanger in the indoor unit and the control of the system are designed to prevent damage due to ice formation, where the refrigerant-containing parts of the indoor unit are protected against fan breakage or the fan is designed to prevent breakage, systems where only permanent joints are used in the occupied space in question except for site-made joints directly connecting the indoor unit to the piping,where the refrigerant-containing pipes in the occupied space in question are installed in such way that it is protected against accidental damage in accordance with EN 378-2:2016, 6.2.3.3.4 and EN 378-3:2016, 6.2, alternative provisions to ensure safety are provided in accordance with EN 378-1:2016, C.3.2.2 and C.3.2.3, doors of the occupied space are not tight-fitting and the effect of flow down is mitigated in accordance with C.3.2.4.\nIf the value exceeds the QLMV, appropriate measures such as ventilation (natural or mechanical), safety shut-off valves and safety alarm, in conjunction with a gas detection device, see in EN 378-3:2016, Clauses 6, 8, 9 and 10. A safety alarm alone shall not be considered as an appropriate measure where occupants are restricted in their movement. (see EN 378-3:2016, 8.1) shall be taken."]
[null,null,"EN 378 Appendix C3 (QLAV):",{"$f":"'QLAV & QLMV'!D102","v":84.045000000000002},null,{"$f":"'QLAV & QLMV'!D101","v":84.045000000000002}]
[]
[null,null,null,"Non-Sealed System",null,{"$f":"IF(AND(Berechnungen!F5>'Template Cold Room (ab. ground)'!D45,Berechnungen!D27=\"1\"),\"Sealed System\",\"\")","v":""}]
[null,null,"EN 378 Appendix C3 (QLMV):",{"$f":"'QLAV & QLMV'!C102","v":84.045000000000002},null,{"$f":"'QLAV & QLMV'!C101","v":16.808999999999997}]

{"sheet":"Pictures","index":7,"n_rows":11,"n_cols":4,"rows_kept":11,"cut":false,"hidden":true,"merged":[]}
["Class1",null,null,{"$f":"IF('A2L Calculator (above ground)'!AB7=\"1\",\"Class1\",IF('A2L Calculator (above ground)'!AB7=\"2\",\"Class2\",IF('A2L Calculator (above ground)'!AB7=\"3\",\"Class3\",\"Class4\")))","v":"Class1"}]
["Class2"]
["Class3"]
["Class4"]
[]
["a",null,null,{"$f":"IF('A2L Calculator (above ground)'!AB14=\"a\",\"aaa\",IF('A2L Calculator (above ground)'!AB14=\"b\",\"bbb\",\"ccc\"))","v":"aaa"}]
["b"]
["c"]
[]
[]
[{"$f":"Bild","v":0}]

{"sheet":"QLAV & QLMV","index":8,"n_rows":102,"n_cols":29,"rows_kept":102,"cut":false,"hidden":true,"merged":[[68,15,68,17],[69,15,69,17],[65,0,67,0],[65,1,67,1],[24,1,27,1],[24,0,27,0],[24,3,27,5],[28,15,28,17],[29,15,29,17]]}
[]
[]
[]
[]
[]
[]
[]
[null,null,null,null,null,null,null,null,null,null,null,null,null,null,null,null,"R454C",0.29299999999999998]
[null,null,null,null,null,null,null,null,null,null,null,null,null,null,null,null,"R1234yf",0.28899999999999998]
[null,null,null,null,null,null,null,null,null,null,null,null,null,null,null,null,"R454A",0.27800000000000002]
[null,null,null,null,null,null,null,null,null,null,null,null,null,null,null,null,"R454B",0.30299999999999999]
[null,null,null,null,null,null,null,null,null,null,null,null,null,null,null,null,"R452B",0.31]
[null,null,null,null,null,null,null,null,null,null,null,null,null,null,null,null,"R32",0.307]
[null,null,null,null,null,null,null,null,null,null,null,null,null,null,null,null,"R455A",0.43099999999999999]
[null,null,null,null,null,null,null,null,null,null,null,null,null,null,null,null,"R290",{"$f":"0.15/4","v":3.7499999999999999E-2}]
[null,null,null,null,null,null,null,null,null,null,null,null,null,null,null,null,"R152a",0.13]
[null,null,null,null,null,null,null,null,null,null,null,null,null,null,null,null,"R1234ze",0.30299999999999999]
[]
[]
[]
[null,"Max. Füllmenge für QLMV und QLAV: Raumvolumen * QLAV bzw. QLMV"]
[null,"Wichtig ist dass die Füllmenge 130*LFL*1,5 nicht überschreiten darf !!!!"]
[]
[]
["O","A",null,"<1Pers",null,null,null,"OAa11"]
[]
[]
[]
[null,null,null,null,null,null,null,"m3","m2","m1",null,null,null,null,null,"Aktuelle Anwendung im Rechner"]
[null,"Refrigerant","QLMV","QLAV","RV/Refri.Carge",null,"Max. Carge QLMV/QLAV","130*LFL*1,5","26*LFL*1,5","4*LFL*1,5","QLMV MAX","QLAV MAX","QLAV result",null,null,{"$f":"'A2L Calculator (above ground)'!AB24&'A2L Calculator (above ground)'!AB14&'A2L Calculator (above ground)'!AB7&'A2L Calculator (above ground)'!AB31","v":"HCa11"}]
[null,"R454c",6.0999999999999999E-2,0.14000000000000001,{"$f":"'A2L Calculator (above ground)'!D52/'A2L Calculator (above ground)'!D50","v":{"$error":"#VALUE!"}},{"$f":"IF(E31<=C31,C31,D31)","v":{"$error":"#VALUE!"}},{"$f":"'A2L Calculator (above ground)'!D50*F31","v":{"$error":"#VALUE!"}},{"$f":"130*R8*1.5","v":57.134999999999991},{"$f":"26*R8*1.5","v":11.427},{"$f":"4*LFL454C*1.5","v":1.758},{"$f":"'A2L Calculator (above ground)'!D50*C31","v":{"$error":"#VALUE!"}},{"$f":"'A2L Calculator (above ground)'!D50*D31","v":{"$error":"#VALUE!"}},{"$f":"IF(L31>H31,H31,L31)","v":{"$error":"#VALUE!"}}]
[null,"R454A",5.8000000000000003E-2,0.13,{"$f":"'A2L Calculator (above ground)'!D52/'A2L Calculator (above ground)'!D50","v":{"$error":"#VALUE!"}},{"$f":"IF(E32<=C32,C32,D32)","v":{"$error":"#VALUE!"}},{"$f":"'A2L Calculator (above ground)'!D50*F32","v":{"$error":"#VALUE!"}},{"$f":"130*R10*1.5","v":54.21},{"$f":"26*R10*1.5","v":10.842000000000001},{"$f":"4*LFL454A*1.5","v":1.6680000000000001},{"$f":"'A2L Calculator (above ground)'!D50*C32","v":{"$error":"#VALUE!"}},{"$f":"'A2L Calculator (above ground)'!D50*D32","v":{"$error":"#VALUE!"}},{"$error":"#VALUE!"}]
[null,"R454B",6.4000000000000001E-2,0.15,{"$f":"'A2L Calculator (above ground)'!D52/'A2L Calculator (above ground)'!D50","v":{"$error":"#VALUE!"}},{"$error":"#VALUE!"},{"$f":"'A2L Calculator (above ground)'!D50*F33","v":{"$error":"#VALUE!"}},{"$f":"130*R11*1.5","v":59.085000000000001},{"$f":"26*R11*1.5","v":11.817},{"$f":"4*LFL454B*1.5","v":1.8180000000000001},{"$f":"'A2L Calculator (above ground)'!D50*C33","v":{"$error":"#VALUE!"}},{"$f":"'A2L Calculator (above ground)'!D50*D33","v":{"$error":"#VALUE!"}},{"$error":"#VALUE!"}]
[null,"R452B",6.5000000000000002E-2,0.15,{"$f":"'A2L Calculator (above ground)'!D52/'A2L Calculator (above ground)'!D50","v":{"$error":"#VALUE!"}},{"$error":"#VALUE!"},{"$f":"'A2L Calculator (above ground)'!D50*F34","v":{"$error":"#VALUE!"}},{"$f":"130*R12*1.5","v":60.449999999999996},{"$f":"26*R12*1.5","v":12.09},{"$f":"4*LFL452B*1.5","v":1.8599999999999999},{"$f":"'A2L Calculator (above ground)'!D50*'QLAV & QLMV'!C34","v":{"$error":"#VALUE!"}},{"$f":"'A2L Calculator (above ground)'!D50*D34","v":{"$error":"#VALUE!"}},{"$error":"#VALUE!"}]
[null,"R32",6.3E-2,0.15,{"$f":"'A2L Calculator (above ground)'!D52/'A2L Calculator (above ground)'!D50","v":{"$error":"#VALUE!"}},{"$error":"#VALUE!"},{"$f":"'A2L Calculator (above ground)'!D50*F35","v":{"$error":"#VALUE!"}},{"$f":"130*R13*1.5","v":59.864999999999995},{"$f":"26*R13*1.5","v":11.973000000000001},{"$f":"4*LFL32a*1.5","v":1.8420000000000001},{"$f":"'A2L Calculator (above ground)'!D50*C35","v":{"$error":"#VALUE!"}},{"$f":"'A2L Calculator (above ground)'!D50*D35","v":{"$error":"#VALUE!"}},{"$error":"#VALUE!"}]
[null,"R455A",9.1999999999999998E-2,0.21,{"$f":"'A2L Calculator (above ground)'!D52/'A2L Calculator (above ground)'!D50","v":{"$error":"#VALUE!"}},{"$error":"#VALUE!"},{"$f":"'A2L Calculator (above ground)'!D50*F36","v":{"$error":"#VALUE!"}},{"$f":"130*R14*1.5","v":84.045000000000002},{"$f":"26*R14*1.5","v":16.808999999999997},{"$f":"4*LFL455A*1.5","v":2.5859999999999999},{"$f":"'A2L Calculator (above ground)'!D50*C36","v":{"$error":"#VALUE!"}},{"$f":"'A2L Calculator (above ground)'!D50*D36","v":{"$error":"#VALUE!"}},{"$error":"#VALUE!"}]
[null,"R152a",null,null,null,0]
[null,"R1234yf",0.06,0.14000000000000001,{"$f":"'A2L Calculator (above ground)'!D52/'A2L Calculator (above ground)'!D50","v":{"$error":"#VALUE!"}},{"$error":"#VALUE!"},{"$f":"'A2L Calculator (above ground)'!D50*F38","v":{"$error":"#VALUE!"}},{"$f":"130*R9*1.5","v":56.355000000000004},{"$f":"26*R9*1.5","v":11.270999999999999},{"$f":"4*LFL1234yf*1.5","v":1.734},{"$f":"'A2L Calculator (above ground)'!D50*C38","v":{"$error":"#VALUE!"}},{"$f":"'A2L Calculator (above ground)'!D50*D38","v":{"$error":"#VALUE!"}},{"$f":"IF(L38>H38,H38,L38)","v":{"$error":"#VALUE!"}}]
[null,"R1234ze",6.3E-2,0.15,{"$f":"'A2L Calculator (above ground)'!D52/'A2L Calculator (above ground)'!D50","v":{"$error":"#VALUE!"}},{"$error":"#VALUE!"},{"$f":"'A2L Calculator (above ground)'!D50*F39","v":{"$error":"#VALUE!"}},{"$f":"130*R17*1.5","v":59.085000000000001},{"$f":"26*R17*1.5","v":11.817},{"$f":"4*LFL1234ze*1.5","v":1.8180000000000001},{"$f":"'A2L Calculator (above ground)'!D50*C39","v":{"$error":"#VALUE!"}},{"$f":"'A2L Calculator (above ground)'!D50*D39","v":{"$error":"#VALUE!"}},{"$f":"IF(L39>H39,H39,L39)","v":{"$error":"#VALUE!"}}]
[null,{"$f":"'A2L Calculator (above ground)'!D31","v":"R454C"},{"$f":"IF(B40=\"R454c\",C31,IF(B40=\"R454A\",C32,IF(B40=\"R454B\",C33,IF(B40=\"R452B\",C34,IF(B40=\"R32\",C35,IF(B40=\"R455A\",C36,IF(B40=\"R1234yf\",C38,IF(B40=\"R1234ze\",C39,\"\"))))))))","v":6.0999999999999999E-2},{"$f":"IF(B40=\"R454c\",D31,IF(B40=\"R454A\",D32,IF(B40=\"R454B\",D33,IF(B40=\"R452B\",D34,IF(B40=\"R32\",D35,IF(B40=\"R455A\",D36,IF(B40=\"R1234yf\",D38,IF(B40=\"R1234ze\",D39,\"\"))))))))","v":0.14000000000000001},{"$f":"'A2L Calculator (above ground)'!D52/'A2L Calculator (above ground)'!D50","v":{"$error":"#VALUE!"}},{"$f":"IF(E40<=QLMV,QLMV,D40)","v":{"$error":"#VALUE!"}},{"$f":"'A2L Calculator (above ground)'!D50*F40","v":{"$error":"#VALUE!"}},{"$f":"130*LFL*1.5","v":57.134999999999991},{"$f":"26*LFL*1.5","v":11.427},{"$f":"4*LFL*1.5","v":1.758},{"$f":"'A2L Calculator (above ground)'!D50*C40","v":{"$error":"#VALUE!"}},{"$f":"'A2L Calculator (above ground)'!D50*D40","v":{"$error":"#VALUE!"}},{"$f":"IF(L40>H40,H40,L40)","v":{"$error":"#VALUE!"}}]
[null,"OAaIC1","OAaIQLMV","OAaIQLAV","OAaIIC1","OAaIIQLMV","OAaIIQLAV","OAbIC1","OAbIQLMV","OAbIQLAV","OAbIIC1","OAbIIQLMV","OAbIIQLAV","OAcIC1","OAcIQLMV","OAcIQLAV","OAcIIC1","OAcIIQLMV","OAcIIQLAV","<1PerscIC1","<1PErscIQLMV","<1PerscIQLAV","<1PerscIIC1","aIII","bIII","cIII","aIV","bIV","cIV"]
["R454c",{"$f":"IF(IF(0.2*LFL454C*'A2L Calculator (above ground)'!D50>I31,I31,0.2*LFL454C*'A2L Calculator (above ground)'!D50)<J31,J31,IF(0.2*LFL454C*'A2L Calculator (above ground)'!D50>I31,I31,0.2*LFL454C*'A2L Calculator (above ground)'!D50))","v":{"$error":"#VALUE!"}},{"$f":"B42","v":{"$error":"#VALUE!"}},{"$f":"B42","v":{"$error":"#VALUE!"}},{"$f":"IF(IF(0.2*LFL454C*'A2L Calculator (above ground)'!D50>I31,I31,0.2*LFL454C*'A2L Calculator (above ground)'!D50)<J31,J31,IF(0.2*LFL454C*'A2L Calculator (above ground)'!D50>I31,I31,0.2*LFL454C*'A2L Calculator (above ground)'!D50))","v":{"$error":"#VALUE!"}},{"$f":"IF(IF(K31>H31,H31,K31)<J31,J31,IF(K31>H31,H31,K31))","v":{"$error":"#VALUE!"}},{"$f":"IF(IF(L31>H31,H31,L31)<J31,J31,IF(L31>H31,H31,L31))","v":{"$error":"#VALUE!"}},{"$f":"IF(IF(0.2*LFL454C*'A2L Calculator (above ground)'!D50>I31,I31,0.2*LFL454C*'A2L Calculator (above ground)'!D50)<J31,J31,IF(0.2*LFL454C*'A2L Calculator (above ground)'!D50>I31,I31,0.2*LFL454C*'A2L Calculator (above ground)'!D50))","v":{"$error":"#VALUE!"}},{"$f":"H42","v":{"$error":"#VALUE!"}},{"$f":"H42","v":{"$error":"#VALUE!"}},{"$f":"IF(IF(0.2*R8*'A2L Calculator (above ground)'!D50<=25,0.2*R8*'A2L Calculator (above ground)'!D50,25)<J31,J31,IF(0.2*R8*'A2L Calculator (above ground)'!D50<=25,0.2*R8*'A2L Calculator (above ground)'!D50,25))","v":{"$error":"#VALUE!"}},{"$f":"IF(IF(K31>H31,H31,K31)<J31,J31,IF(K31>H31,H31,K31))","v":{"$error":"#VALUE!"}},{"$f":"IF(IF(L31>H31,H31,L31)<J31,J31,IF(L31>H31,H31,L31))","v":{"$error":"#VALUE!"}},{"$f":"IF(IF(0.2*LFL454C*'A2L Calculator (above ground)'!D50>I31,I31,0.2*LFL454C*'A2L Calculator (above ground)'!D50)<J31,J31,IF(0.2*LFL454C*'A2L Calculator (above ground)'!D50>I31,I31,0.2*LFL454C*'A2L Calculator (above ground)'!D50))","v":{"$error":"#VALUE!"}},{"$f":"N42","v":{"$error":"#VALUE!"}},{"$f":"N42","v":{"$error":"#VALUE!"}},{"$f":"IF(IF(0.2*R8*'A2L Calculator (above ground)'!D50<=25,0.2*R8*'A2L Calculator (above ground)'!D50,25)<J31,J31,IF(0.2*R8*'A2L Calculator (above ground)'!D50<=25,0.2*R8*'A2L Calculator (above ground)'!D50,25))","v":{"$error":"#VALUE!"}},{"$f":"IF(IF(K31>H31,H31,K31)<J31,J31,IF(K31>H31,H31,K31))","v":{"$error":"#VALUE!"}},{"$f":"IF(IF(L31>H31,H31,L31)<J31,J31,IF(L31>H31,H31,L31))","v":{"$error":"#VALUE!"}},{"$f":"IF(IF(0.2*R8*'A2L Calculator (above ground)'!D50<=50,0.2*R8*'A2L Calculator (above ground)'!D50,50)<J31,J31,IF(0.2*R8*'A2L Calculator (above ground)'!D50<=50,0.2*R8*'A2L Calculator (above ground)'!D50,50))","v":{"$error":"#VALUE!"}},{"$f":"T42","v":{"$error":"#VALUE!"}},{"$f":"T42","v":{"$error":"#VALUE!"}},"No Charge Restriction","No Charge Restriction","No Charge Restriction","No Charge Restriction",{"$f":"H31","v":57.134999999999991},{"$f":"H31","v":57.134999999999991},{"$f":"H31","v":57.134999999999991}]
["Non Sealed",{"$f":"0.2*LFL454C*'A2L Calculator (above ground)'!D50","v":{"$error":"#VALUE!"}},{"$f":"0.2*LFL454C*'A2L Calculator (above ground)'!D50","v":{"$error":"#VALUE!"}},{"$f":"0.2*LFL454C*'A2L Calculator (above ground)'!D50","v":{"$error":"#VALUE!"}},{"$f":"0.2*LFL454C*'A2L Calculator (above ground)'!D50","v":{"$error":"#VALUE!"}},{"$f":"IF(IF(K31>H31,H31,K31)<J31,K31,IF(K31>H31,H31,K31))","v":{"$error":"#VALUE!"}},{"$f":"IF(IF(L31>H31,H31,L31)<J31,L31,IF(L31>H31,H31,L31))","v":{"$error":"#VALUE!"}},{"$f":"0.2*LFL454C*'A2L Calculator (above ground)'!D50","v":{"$error":"#VALUE!"}},{"$f":"0.2*LFL454C*'A2L Calculator (above ground)'!D50","v":{"$error":"#VALUE!"}},{"$f":"0.2*LFL454C*'A2L Calculator (above ground)'!D50","v":{"$error":"#VALUE!"}},{"$f":"0.2*LFL454C*'A2L Calculator (above ground)'!D50","v":{"$error":"#VALUE!"}},{"$f":"IF(IF(K31>H31,H31,K31)<J31,K31,IF(K31>H31,H31,K31))","v":{"$error":"#VALUE!"}},{"$f":"IF(IF(L31>H31,H31,L31)<J31,L31,IF(L31>H31,H31,L31))","v":{"$error":"#VALUE!"}},{"$f":"0.2*LFL454C*'A2L Calculator (above ground)'!D50","v":{"$error":"#VALUE!"}},{"$f":"0.2*LFL454C*'A2L Calculator (above ground)'!D50","v":{"$error":"#VALUE!"}},{"$f":"0.2*LFL454C*'A2L Calculator (above ground)'!D50","v":{"$error":"#VALUE!"}},{"$f":"0.2*LFL454C*'A2L Calculator (above ground)'!D50","v":{"$error":"#VALUE!"}},{"$f":"IF(IF(K31>H31,H31,K31)<J31,K31,IF(K31>H31,H31,K31))","v":{"$error":"#VALUE!"}},{"$f":"IF(IF(L31>H31,H31,L31)<J31,L31,IF(L31>H31,H31,L31))","v":{"$error":"#VALUE!"}},{"$f":"0.2*LFL454C*'A2L Calculator (above ground)'!D50","v":{"$error":"#VALUE!"}},{"$f":"0.2*LFL454C*'A2L Calculator (above ground)'!D50","v":{"$error":"#VALUE!"}},{"$f":"0.2*LFL454C*'A2L Calculator (above ground)'!D50","v":{"$error":"#VALUE!"}},"No Charge Restriction",null,null,null,{"$f":"AA42","v":57.134999999999991},{"$f":"AB42","v":57.134999999999991},{"$f":"AC42","v":57.134999999999991}]
["R454A",{"$f":"IF(IF(0.2*LFL454A*'A2L Calculator (above ground)'!D50>I32,I32,0.2*LFL454A*'A2L Calculator (above ground)'!D50)<J32,J32,IF(0.2*LFL454A*'A2L Calculator (above ground)'!D50>I32,I32,0.2*LFL454A*'A2L Calculator (above ground)'!D50))","v":{"$error":"#VALUE!"}},{"$f":"B44","v":{"$error":"#VALUE!"}},{"$f":"B44","v":{"$error":"#VALUE!"}},{"$f":"IF(IF(0.2*LFL454A*'A2L Calculator (above ground)'!D50>I32,I32,0.2*LFL454A*'A2L Calculator (above ground)'!D50)<J32,J32,IF(0.2*LFL454A*'A2L Calculator (above ground)'!D50>I32,I32,0.2*LFL454A*'A2L Calculator (above ground)'!D50))","v":{"$error":"#VALUE!"}},{"$f":"IF(IF(K32>H32,H32,K32)<J32,J32,IF(K32>H32,H32,K32))","v":{"$error":"#VALUE!"}},{"$f":"IF(IF(L32>H32,H32,L32)<J32,J32,IF(L32>H32,H32,L32))","v":{"$error":"#VALUE!"}},{"$f":"IF(IF(0.2*LFL454A*'A2L Calculator (above ground)'!D50>I32,I32,0.2*LFL454A*'A2L Calculator (above ground)'!D50)<J32,J32,IF(0.2*LFL454A*'A2L Calculator (above ground)'!D50>I32,I32,0.2*LFL454A*'A2L Calculator (above ground)'!D50))","v":{"$error":"#VALUE!"}},{"$f":"H44","v":{"$error":"#VALUE!"}},{"$f":"H44","v":{"$error":"#VALUE!"}},{"$f":"IF(IF(0.2*LFL454A*'A2L Calculator (above ground)'!D50<=25,0.2*LFL454A*'A2L Calculator (above ground)'!D50,25)<J32,J32,IF(0.2*LFL454A*'A2L Calculator (above ground)'!D50<=25,0.2*LFL454A*'A2L Calculator (above ground)'!D50,25))","v":{"$error":"#VALUE!"}},{"$f":"IF(IF(K32>H32,H32,K32)<J32,J32,IF(K32>H32,H32,K32))","v":{"$error":"#VALUE!"}},{"$f":"IF(IF(L32>H32,H32,L32)<J32,J32,IF(L32>H32,H32,L32))","v":{"$error":"#VALUE!"}},{"$f":"IF(IF(0.2*LFL454A*'A2L Calculator (above ground)'!D50>I32,I32,0.2*LFL454A*'A2L Calculator (above ground)'!D50)<J32,J32,IF(0.2*LFL454A*'A2L Calculator (above ground)'!D50>I32,I32,0.2*LFL454A*'A2L Calculator (above ground)'!D50))","v":{"$error":"#VALUE!"}},{"$f":"N44","v":{"$error":"#VALUE!"}},{"$f":"N44","v":{"$error":"#VALUE!"}},{"$f":"IF(IF(0.2*LFL454A*'A2L Calculator (above ground)'!D50<=25,0.2*LFL454A*'A2L Calculator (above ground)'!D50,25)<J32,J32,IF(0.2*LFL454A*'A2L Calculator (above ground)'!D50<=25,0.2*LFL454A*'A2L Calculator (above ground)'!D50,25))","v":{"$error":"#VALUE!"}},{"$f":"IF(IF(K32>H32,H32,K32)<J32,J32,IF(K32>H32,H32,K32))","v":{"$error":"#VALUE!"}},{"$f":"IF(IF(L32>H32,H32,L32)<J32,J32,IF(L32>H32,H32,L32))","v":{"$error":"#VALUE!"}},{"$f":"IF(IF(0.2*LFL454A*'A2L Calculator (above ground)'!D50<=50,0.2*LFL454A*'A2L Calculator (above ground)'!D50,50)<J32,J32,IF(0.2*LFL454A*'A2L Calculator (above ground)'!D50<=50,0.2*LFL454A*'A2L Calculator (above ground)'!D50,50))","v":{"$error":"#VALUE!"}},{"$f":"T44","v":{"$error":"#VALUE!"}},{"$f":"T44","v":{"$error":"#VALUE!"}},"No Charge Restriction","No Charge Restriction","No Charge Restriction","No Charge Restriction",{"$f":"H32","v":54.21},{"$f":"H32","v":54.21},{"$f":"H32","v":54.21}]
["Non Sealed",{"$f":"0.2*LFL454A*'A2L Calculator (above ground)'!D50","v":{"$error":"#VALUE!"}},{"$f":"0.2*LFL454A*'A2L Calculator (above ground)'!D50","v":{"$error":"#VALUE!"}},{"$f":"0.2*LFL454A*'A2L Calculator (above ground)'!D50","v":{"$error":"#VALUE!"}},{"$f":"0.2*LFL454A*'A2L Calculator (above ground)'!D50","v":{"$error":"#VALUE!"}},{"$f":"IF(IF(K32>H32,H32,K32)<J32,K32,IF(K32>H32,H32,K32))","v":{"$error":"#VALUE!"}},{"$f":"IF(IF(L32>H32,H32,L32)<J32,L32,IF(L32>H32,H32,L32))","v":{"$error":"#VALUE!"}},{"$f":"0.2*LFL454A*'A2L Calculator (above ground)'!D50","v":{"$error":"#VALUE!"}},{"$f":"0.2*LFL454A*'A2L Calculator (above ground)'!D50","v":{"$error":"#VALUE!"}},{"$f":"0.2*LFL454A*'A2L Calculator (above ground)'!D50","v":{"$error":"#VALUE!"}},{"$f":"0.2*LFL454A*'A2L Calculator (above ground)'!D50","v":{"$error":"#VALUE!"}},{"$f":"IF(IF(K32>H32,H32,K32)<J32,K32,IF(K32>H32,H32,K32))","v":{"$error":"#VALUE!"}},{"$f":"IF(IF(L32>H32,H32,L32)<J32,L32,IF(L32>H32,H32,L32))","v":{"$error":"#VALUE!"}},{"$f":"0.2*LFL454A*'A2L Calculator (above ground)'!D50","v":{"$error":"#VALUE!"}},{"$f":"0.2*LFL454A*'A2L Calculator (above ground)'!D50","v":{"$error":"#VALUE!"}},{"$f":"0.2*LFL454A*'A2L Calculator (above ground)'!D50","v":{"$error":"#VALUE!"}},{"$f":"0.2*LFL454A*'A2L Calculator (above ground)'!D50","v":{"$error":"#VALUE!"}},{"$f":"IF(IF(K32>H32,H32,K32)<J32,K32,IF(K32>H32,H32,K32))","v":{"$error":"#VALUE!"}},{"$f":"IF(IF(L32>H32,H32,L32)<J32,L32,IF(L32>H32,H32,L32))","v":{"$error":"#VALUE!"}},{"$f":"0.2*LFL454A*'A2L Calculator (above ground)'!D50","v":{"$error":"#VALUE!"}},{"$f":"0.2*LFL454A*'A2L Calculator (above ground)'!D50","v":{"$error":"#VALUE!"}},{"$f":"0.2*LFL454A*'A2L Calculator (above ground)'!D50","v":{"$error":"#VALUE!"}},"No Charge Restriction",null,null,null,{"$f":"AA44","v":54.21},{"$f":"AB44","v":54.21},{"$f":"AC44","v":54.21}]
["R454B",{"$f":"IF(IF(0.2*LFL454B*'A2L Calculator (above ground)'!D50>I33,I33,0.2*LFL454B*'A2L Calculator (above ground)'!D50)<J33,J33,IF(0.2*LFL454B*'A2L Calculator (above ground)'!D50>I33,I33,0.2*LFL454B*'A2L Calculator (above ground)'!D50))","v":{"$error":"#VALUE!"}},{"$f":"B46","v":{"$error":"#VALUE!"}},{"$f":"B46","v":{"$error":"#VALUE!"}},{"$f":"IF(IF(0.2*LFL454B*'A2L Calculator (above ground)'!D50>I33,I33,0.2*LFL454B*'A2L Calculator (above ground)'!D50)<J33,J33,IF(0.2*LFL454B*'A2L Calculator (above ground)'!D50>I33,I33,0.2*LFL454B*'A2L Calculator (above ground)'!D50))","v":{"$error":"#VALUE!"}},{"$f":"IF(IF(K33>H33,H33,K33)<J33,J33,IF(K33>H33,H33,K33))","v":{"$error":"#VALUE!"}},{"$f":"IF(IF(L33>H33,H33,L33)<J33,J33,IF(L33>H33,H33,L33))","v":{"$error":"#VALUE!"}},{"$f":"IF(IF(0.2*LFL454B*'A2L Calculator (above ground)'!D50>I33,I33,0.2*LFL454B*'A2L Calculator (above ground)'!D50)<J33,J33,IF(0.2*LFL454B*'A2L Calculator (above ground)'!D50>I33,I33,0.2*LFL454B*'A2L Calculator (above ground)'!D50))","v":{"$error":"#VALUE!"}},{"$f":"H46","v":{"$error":"#VALUE!"}},{"$f":"H46","v":{"$error":"#VALUE!"}},{"$f":"IF(IF(0.2*LFL454B*'A2L Calculator (above ground)'!D50<=25,0.2*LFL454B*'A2L Calculator (above ground)'!D50,25)<J33,J33,IF(0.2*LFL454B*'A2L Calculator (above ground)'!D50<=25,0.2*LFL454B*'A2L Calculator (above ground)'!D50,25))","v":{"$error":"#VALUE!"}},{"$f":"IF(IF(K33>H33,H33,K33)<J33,J33,IF(K33>H33,H33,K33))","v":{"$error":"#VALUE!"}},{"$f":"IF(IF(L33>H33,H33,L33)<J33,J33,IF(L33>H33,H33,L33))","v":{"$error":"#VALUE!"}},{"$f":"IF(IF(0.2*LFL454B*'A2L Calculator (above ground)'!D50>I33,I33,0.2*LFL454B*'A2L Calculator (above ground)'!D50)<J33,J33,IF(0.2*LFL454B*'A2L Calculator (above ground)'!D50>I33,I33,0.2*LFL454B*'A2L Calculator (above ground)'!D50))","v":{"$error":"#VALUE!"}},{"$f":"N46","v":{"$error":"#VALUE!"}},{"$f":"N46","v":{"$error":"#VALUE!"}},{"$f":"IF(IF(0.2*LFL454B*'A2L Calculator (above ground)'!D50<=25,0.2*LFL454B*'A2L Calculator (above ground)'!D50,25)<J33,J33,IF(0.2*LFL454B*'A2L Calculator (above ground)'!D50<=25,0.2*LFL454B*'A2L Calculator (above ground)'!D50,25))","v":{"$error":"#VALUE!"}},{"$f":"IF(IF(K33>H33,H33,K33)<J33,J33,IF(K33>H33,H33,K33))","v":{"$error":"#VALUE!"}},{"$f":"IF(IF(L33>H33,H33,L33)<J33,J33,IF(L33>H33,H33,L33))","v":{"$error":"#VALUE!"}},{"$f":"IF(IF(0.2*LFL454B*'A2L Calculator (above ground)'!D50<=50,0.2*LFL454B*'A2L Calculator (above ground)'!D50,50)<J33,J33,IF(0.2*LFL454B *'A2L Calculator (above ground)'!D50<=50,0.2*LFL454B*'A2L Calculator (above ground)'!D50,50))","v":{"$error":"#VALUE!"}},{"$f":"T46","v":{"$error":"#VALUE!"}},{"$f":"T46","v":{"$error":"#VALUE!"}},"No Charge Restriction","No Charge Restriction","No Charge Restriction","No Charge Restriction",{"$f":"H33","v":59.085000000000001},{"$f":"H33","v":59.085000000000001},{"$f":"H33","v":59.085000000000001}]
["Non Sealed",{"$f":"0.2*LFL454B*'A2L Calculator (above ground)'!D50","v":{"$error":"#VALUE!"}},{"$f":"0.2*LFL454B*'A2L Calculator (above ground)'!D50","v":{"$error":"#VALUE!"}},{"$f":"0.2*LFL454B*'A2L Calculator (above ground)'!D50","v":{"$error":"#VALUE!"}},{"$f":"0.2*LFL454B*'A2L Calculator (above ground)'!D50","v":{"$error":"#VALUE!"}},{"$f":"IF(IF(K33>H33,H33,K33)<J33,K33,IF(K33>H33,H33,K33))","v":{"$error":"#VALUE!"}},{"$f":"IF(IF(L33>H33,H33,L33)<J33,L33,IF(L33>H33,H33,L33))","v":{"$error":"#VALUE!"}},{"$f":"0.2*LFL454B*'A2L Calculator (above ground)'!D50","v":{"$error":"#VALUE!"}},{"$f":"0.2*LFL454B*'A2L Calculator (above ground)'!D50","v":{"$error":"#VALUE!"}},{"$f":"0.2*LFL454B*'A2L Calculator (above ground)'!D50","v":{"$error":"#VALUE!"}},{"$f":"0.2*LFL454B*'A2L Calculator (above ground)'!D50","v":{"$error":"#VALUE!"}},{"$f":"IF(IF(K33>H33,H33,K33)<J33,K33,IF(K33>H33,H33,K33))","v":{"$error":"#VALUE!"}},{"$f":"IF(IF(L33>H33,H33,L33)<J33,L33,IF(L33>H33,H33,L33))","v":{"$error":"#VALUE!"}},{"$f":"0.2*LFL454B*'A2L Calculator (above ground)'!D50","v":{"$error":"#VALUE!"}},{"$f":"0.2*LFL454B*'A2L Calculator (above ground)'!D50","v":{"$error":"#VALUE!"}},{"$f":"0.2*LFL454B*'A2L Calculator (above ground)'!D50","v":{"$error":"#VALUE!"}},{"$f":"0.2*LFL454B*'A2L Calculator (above ground)'!D50","v":{"$error":"#VALUE!"}},{"$f":"IF(IF(K33>H33,H33,K33)<J33,K33,IF(K33>H33,H33,K33))","v":{"$error":"#VALUE!"}},{"$f":"IF(IF(L33>H33,H33,L33)<J33,L33,IF(L33>H33,H33,L33))","v":{"$error":"#VALUE!"}},{"$f":"0.2*LFL454B*'A2L Calculator (above ground)'!D50","v":{"$error":"#VALUE!"}},{"$f":"0.2*LFL454B*'A2L Calculator (above ground)'!D50","v":{"$error":"#VALUE!"}},{"$f":"0.2*LFL454B*'A2L Calculator (above ground)'!D50","v":{"$error":"#VALUE!"}},"No Charge Restriction",null,null,null,{"$f":"AA46","v":59.085000000000001},{"$f":"AB46","v":59.085000000000001},{"$f":"AC46","v":59.085000000000001}]
["R452B",{"$f":"IF(IF(0.2*LFL452B*'A2L Calculator (above ground)'!D50>I34,I34,0.2*LFL452B*'A2L Calculator (above ground)'!D50)<J34,J34,IF(0.2*LFL452B*'A2L Calculator (above ground)'!D50>I34,I34,0.2*LFL452B*'A2L Calculator (above ground)'!D50))","v":{"$error":"#VALUE!"}},{"$f":"B48","v":{"$error":"#VALUE!"}},{"$f":"B48","v":{"$error":"#VALUE!"}},{"$f":"IF(IF(0.2*LFL452B*'A2L Calculator (above ground)'!D50>I34,I34,0.2*LFL452B*'A2L Calculator (above ground)'!D50)<J34,J34,IF(0.2*LFL452B*'A2L Calculator (above ground)'!D50>I34,I34,0.2*LFL452B*'A2L Calculator (above ground)'!D50))","v":{"$error":"#VALUE!"}},{"$f":"IF(IF(K34>H34,H34,K34)<J34,J34,IF(K34>H34,H34,K34))","v":{"$error":"#VALUE!"}},{"$f":"IF(IF(L34>H34,H34,L34)<J34,J34,IF(L34>H34,H34,L34))","v":{"$error":"#VALUE!"}},{"$f":"IF(IF(0.2*LFL452B*'A2L Calculator (above ground)'!D50>I34,I34,0.2*LFL452B*'A2L Calculator (above ground)'!D50)<J34,J34,IF(0.2*LFL452B*'A2L Calculator (above ground)'!D50>I34,I34,0.2*LFL452B*'A2L Calculator (above ground)'!D50))","v":{"$error":"#VALUE!"}},{"$f":"H48","v":{"$error":"#VALUE!"}},{"$f":"H48","v":{"$error":"#VALUE!"}},{"$f":"IF(IF(0.2*LFL452B*'A2L Calculator (above ground)'!D50<=25,0.2*LFL452B*'A2L Calculator (above ground)'!D50,25)<J34,J34,IF(0.2*LFL452B*'A2L Calculator (above ground)'!D50<=25,0.2*LFL452B*'A2L Calculator (above ground)'!D50,25))","v":{"$error":"#VALUE!"}},{"$f":"IF(IF(K34>H34,H34,K34)<J34,J34,IF(K34>H34,H34,K34))","v":{"$error":"#VALUE!"}},{"$f":"IF(IF(L34>H34,H34,L34)<J34,J34,IF(L34>H34,H34,L34))","v":{"$error":"#VALUE!"}},{"$f":"IF(IF(0.2*LFL452B*'A2L Calculator (above ground)'!D50>I34,I34,0.2*LFL452B*'A2L Calculator (above ground)'!D50)<J34,J34,IF(0.2*LFL452B*'A2L Calculator (above ground)'!D50>I34,I34,0.2*LFL452B*'A2L Calculator (above ground)'!D50))","v":{"$error":"#VALUE!"}},{"$f":"N48","v":{"$error":"#VALUE!"}},{"$f":"N48","v":{"$error":"#VALUE!"}},{"$f":"IF(IF(0.2*LFL452B*'A2L Calculator (above ground)'!D50<=25,0.2*LFL452B*'A2L Calculator (above ground)'!D50,25)<J34,J34,IF(0.2*LFL452B*'A2L Calculator (above ground)'!D50<=25,0.2*LFL452B*'A2L Calculator (above ground)'!D50,25))","v":{"$error":"#VALUE!"}},{"$f":"IF(IF(K34>H34,H34,K34)<J34,J34,IF(K34>H34,H34,K34))","v":{"$error":"#VALUE!"}},{"$f":"IF(IF(L34>H34,H34,L34)<J34,J34,IF(L34>H34,H34,L34))","v":{"$error":"#VALUE!"}},{"$f":"IF(IF(0.2*LFL452B*'A2L Calculator (above ground)'!D50<=50,0.2*LFL452B*'A2L Calculator (above ground)'!D50,50)<J34,J34,IF(0.2*LFL452B *'A2L Calculator (above ground)'!D50<=50,0.2*LFL452B*'A2L Calculator (above ground)'!D50,50))","v":{"$error":"#VALUE!"}},{"$f":"T48","v":{"$error":"#VALUE!"}},{"$f":"T48","v":{"$error":"#VALUE!"}},"No Charge Restriction","No Charge Restriction","No Charge Restriction","No Charge Restriction",{"$f":"H34","v":60.449999999999996},{"$f":"H34","v":60.449999999999996}]
["Non Sealed",{"$f":"0.2*LFL452B*'A2L Calculator (above ground)'!D50","v":{"$error":"#VALUE!"}},{"$f":"0.2*LFL452B*'A2L Calculator (above ground)'!D50","v":{"$error":"#VALUE!"}},{"$f":"0.2*LFL452B*'A2L Calculator (above ground)'!D50","v":{"$error":"#VALUE!"}},{"$f":"0.2*LFL452B*'A2L Calculator (above ground)'!D50","v":{"$error":"#VALUE!"}},{"$f":"IF(IF(K34>H34,H34,K34)<J34,K34,IF(K34>H34,H34,K34))","v":{"$error":"#VALUE!"}},{"$f":"IF(IF(L34>H34,H34,L34)<J34,L34,IF(L34>H34,H34,L34))","v":{"$error":"#VALUE!"}},{"$f":"0.2*LFL452B*'A2L Calculator (above ground)'!D50","v":{"$error":"#VALUE!"}},{"$f":"0.2*LFL452B*'A2L Calculator (above ground)'!D50","v":{"$error":"#VALUE!"}},{"$f":"0.2*LFL452B*'A2L Calculator (above ground)'!D50","v":{"$error":"#VALUE!"}},{"$f":"0.2*LFL452B*'A2L Calculator (above ground)'!D50","v":{"$error":"#VALUE!"}},{"$f":"IF(IF(K34>H34,H34,K34)<J34,K34,IF(K34>H34,H34,K34))","v":{"$error":"#VALUE!"}},{"$f":"IF(IF(L34>H34,H34,L34)<J34,L34,IF(L34>H34,H34,L34))","v":{"$error":"#VALUE!"}},{"$f":"0.2*LFL452B*'A2L Calculator (above ground)'!D50","v":{"$error":"#VALUE!"}},{"$f":"0.2*LFL452B*'A2L Calculator (above ground)'!D50","v":{"$error":"#VALUE!"}},{"$f":"0.2*LFL452B*'A2L Calculator (above ground)'!D50","v":{"$error":"#VALUE!"}},{"$f":"0.2*LFL452B*'A2L Calculator (above ground)'!D50","v":{"$error":"#VALUE!"}},{"$f":"IF(IF(K34>H34,H34,K34)<J34,K34,IF(K34>H34,H34,K34))","v":{"$error":"#VALUE!"}},{"$f":"IF(IF(L34>H34,H34,L34)<J34,L34,IF(L34>H34,H34,L34))","v":{"$error":"#VALUE!"}},{"$f":"0.2*LFL452B*'A2L Calculator (above ground)'!D50","v":{"$error":"#VALUE!"}},{"$f":"0.2*LFL452B*'A2L Calculator (above ground)'!D50","v":{"$error":"#VALUE!"}},{"$f":"0.2*LFL452B*'A2L Calculator (above ground)'!D50","v":{"$error":"#VALUE!"}},"No Charge Restriction",null,null,null,{"$f":"AA48","v":60.449999999999996},{"$f":"AB48","v":60.449999999999996}]
["R32",{"$f":"IF(IF(0.2*LFL32a*'A2L Calculator (above ground)'!D50>I35,I35,0.2*LFL32a*'A2L Calculator (above ground)'!D50)<J35,J35,IF(0.2*LFL32a*'A2L Calculator (above ground)'!D50>I35,I35,0.2*LFL32a*'A2L Calculator (above ground)'!D50))","v":{"$error":"#VALUE!"}},{"$f":"B50","v":{"$error":"#VALUE!"}},{"$f":"B50","v":{"$error":"#VALUE!"}},{"$f":"IF(IF(0.2*LFL32a*'A2L Calculator (above ground)'!D50>I35,I35,0.2*LFL32a*'A2L Calculator (above ground)'!D50)<J35,J35,IF(0.2*LFL32a*'A2L Calculator (above ground)'!D50>I35,I35,0.2*LFL32a*'A2L Calculator (above ground)'!D50))","v":{"$error":"#VALUE!"}},{"$f":"IF(IF(K35>H35,H35,K35)<J35,J35,IF(K35>H35,H35,K35))","v":{"$error":"#VALUE!"}},{"$f":"IF(IF(L35>H35,H35,L35)<J35,J35,IF(L35>H35,H35,L35))","v":{"$error":"#VALUE!"}},{"$f":"IF(IF(0.2*LFL32a*'A2L Calculator (above ground)'!D50>I35,I35,0.2*LFL32a*'A2L Calculator (above ground)'!D50)<J35,J35,IF(0.2*LFL32a*'A2L Calculator (above ground)'!D50>I35,I35,0.2*LFL32a*'A2L Calculator (above ground)'!D50))","v":{"$error":"#VALUE!"}},{"$f":"H50","v":{"$error":"#VALUE!"}},{"$f":"H50","v":{"$error":"#VALUE!"}},{"$f":"IF(IF(0.2*LFL32a*'A2L Calculator (above ground)'!D50<=25,0.2*LFL32a*'A2L Calculator (above ground)'!D50,25)<J35,J35,IF(0.2*LFL32a*'A2L Calculator (above ground)'!D50<=25,0.2*LFL32a*'A2L Calculator (above ground)'!D50,25))","v":{"$error":"#VALUE!"}},{"$f":"IF(IF(K35>H35,H35,K35)<J35,J35,IF(K35>H35,H35,K35))","v":{"$error":"#VALUE!"}},{"$f":"IF(IF(L35>H35,H35,L35)<J35,J35,IF(L35>H35,H35,L35))","v":{"$error":"#VALUE!"}},{"$f":"IF(IF(0.2*LFL32a*'A2L Calculator (above ground)'!D50>I35,I35,0.2*LFL32a*'A2L Calculator (above ground)'!D50)<J35,J35,IF(0.2*LFL32a*'A2L Calculator (above ground)'!D50>I35,I35,0.2*LFL32a*'A2L Calculator (above ground)'!D50))","v":{"$error":"#VALUE!"}},{"$f":"N50","v":{"$error":"#VALUE!"}},{"$f":"N50","v":{"$error":"#VALUE!"}},{"$f":"IF(IF(0.2*LFL32a*'A2L Calculator (above ground)'!D50<=25,0.2*LFL32a*'A2L Calculator (above ground)'!D50,25)<J35,J35,IF(0.2*LFL32a*'A2L Calculator (above ground)'!D50<=25,0.2*LFL32a*'A2L Calculator (above ground)'!D50,25))","v":{"$error":"#VALUE!"}},{"$f":"IF(IF(K35>H35,H35,K35)<J35,J35,IF(K35>H35,H35,K35))","v":{"$error":"#VALUE!"}},{"$f":"IF(IF(L35>H35,H35,L35)<J35,J35,IF(L35>H35,H35,L35))","v":{"$error":"#VALUE!"}},{"$f":"IF(IF(0.2*LFL32a*'A2L Calculator (above ground)'!D50<=50,0.2*LFL32a*'A2L Calculator (above ground)'!D50,50)<J35,J35,IF(0.2*LFL32a *'A2L Calculator (above ground)'!D50<=50,0.2*LFL32a*'A2L Calculator (above ground)'!D50,50))","v":{"$error":"#VALUE!"}},{"$f":"T50","v":{"$error":"#VALUE!"}},{"$f":"T50","v":{"$error":"#VALUE!"}},"No Charge Restriction","No Charge Restriction","No Charge Restriction","No Charge Restriction",{"$f":"H35","v":59.864999999999995},{"$f":"H35","v":59.864999999999995},{"$f":"H35","v":59.864999999999995}]
["Non Sealed",{"$f":"0.2*LFL32a*'A2L Calculator (above ground)'!D50","v":{"$error":"#VALUE!"}},{"$f":"0.2*LFL32a*'A2L Calculator (above ground)'!D50","v":{"$error":"#VALUE!"}},{"$f":"0.2*LFL32a*'A2L Calculator (above ground)'!D50","v":{"$error":"#VALUE!"}},{"$f":"0.2*LFL32a*'A2L Calculator (above ground)'!D50","v":{"$error":"#VALUE!"}},{"$f":"IF(IF(K35>H35,H35,K35)<J35,K35,IF(K35>H35,H35,K35))","v":{"$error":"#VALUE!"}},{"$f":"IF(IF(L35>H35,H35,L35)<J35,L35,IF(L35>H35,H35,L35))","v":{"$error":"#VALUE!"}},{"$f":"0.2*LFL32a*'A2L Calculator (above ground)'!D50","v":{"$error":"#VALUE!"}},{"$f":"0.2*LFL32a*'A2L Calculator (above ground)'!D50","v":{"$error":"#VALUE!"}},{"$f":"0.2*LFL32a*'A2L Calculator (above ground)'!D50","v":{"$error":"#VALUE!"}},{"$f":"0.2*LFL32a*'A2L Calculator (above ground)'!D50","v":{"$error":"#VALUE!"}},{"$f":"IF(IF(K35>H35,H35,K35)<J35,K35,IF(K35>H35,H35,K35))","v":{"$error":"#VALUE!"}},{"$f":"IF(IF(L35>H35,H35,L35)<J35,L35,IF(L35>H35,H35,L35))","v":{"$error":"#VALUE!"}},{"$f":"0.2*LFL32a*'A2L Calculator (above ground)'!D50","v":{"$error":"#VALUE!"}},{"$f":"0.2*LFL32a*'A2L Calculator (above ground)'!D50","v":{"$error":"#VALUE!"}},{"$f":"0.2*LFL32a*'A2L Calculator (above ground)'!D50","v":{"$error":"#VALUE!"}},{"$f":"0.2*LFL32a*'A2L Calculator (above ground)'!D50","v":{"$error":"#VALUE!"}},{"$f":"IF(IF(K35>H35,H35,K35)<J35,K35,IF(K35>H35,H35,K35))","v":{"$error":"#VALUE!"}},{"$f":"IF(IF(L35>H35,H35,L35)<J35,L35,IF(L35>H35,H35,L35))","v":{"$error":"#VALUE!"}},{"$f":"0.2*LFL32a*'A2L Calculator (above ground)'!D50","v":{"$error":"#VALUE!"}},{"$f":"0.2*LFL32a*'A2L Calculator (above ground)'!D50","v":{"$error":"#VALUE!"}},{"$f":"0.2*LFL32a*'A2L Calculator (above ground)'!D50","v":{"$error":"#VALUE!"}},"No Charge Restriction",null,null,null,{"$f":"AA50","v":59.864999999999995},{"$f":"AB50","v":59.864999999999995},{"$f":"AC50","v":59.864999999999995}]
["R455A",{"$f":"IF(IF(0.2*LFL455A*'A2L Calculator (above ground)'!D50>I36,I36,0.2*LFL455A*'A2L Calculator (above ground)'!D50)<J36,J36,IF(0.2*LFL455A*'A2L Calculator (above ground)'!D50>I36,I36,0.2*LFL455A*'A2L Calculator (above ground)'!D50))","v":{"$error":"#VALUE!"}},{"$f":"B52","v":{"$error":"#VALUE!"}},{"$f":"B52","v":{"$error":"#VALUE!"}},{"$f":"IF(IF(0.2*LFL455A*'A2L Calculator (above ground)'!D50>I36,I36,0.2*LFL455A*'A2L Calculator (above ground)'!D50)<J36,J36,IF(0.2*LFL455A*'A2L Calculator (above ground)'!D50>I36,I36,0.2*LFL455A*'A2L Calculator (above ground)'!D50))","v":{"$error":"#VALUE!"}},{"$f":"IF(IF(K36>H36,H36,K36)<J36,J36,IF(K36>H36,H36,K36))","v":{"$error":"#VALUE!"}},{"$f":"IF(IF(L36>H36,H36,L36)<J36,J36,IF(L36>H36,H36,L36))","v":{"$error":"#VALUE!"}},{"$f":"IF(IF(0.2*LFL455A*'A2L Calculator (above ground)'!D50>I36,I36,0.2*LFL455A*'A2L Calculator (above ground)'!D50)<J36,J36,IF(0.2*LFL455A*'A2L Calculator (above ground)'!D50>I36,I36,0.2*LFL455A*'A2L Calculator (above ground)'!D50))","v":{"$error":"#VALUE!"}},{"$f":"H52","v":{"$error":"#VALUE!"}},{"$f":"H52","v":{"$error":"#VALUE!"}},{"$f":"IF(IF(0.2*LFL455A*'A2L Calculator (above ground)'!D50<=25,0.2*LFL455A*'A2L Calculator (above ground)'!D50,25)<J36,J36,IF(0.2*LFL455A*'A2L Calculator (above ground)'!D50<=25,0.2*LFL455A*'A2L Calculator (above ground)'!D50,25))","v":{"$error":"#VALUE!"}},{"$f":"IF(IF(K36>H36,H36,K36)<J36,J36,IF(K36>H36,H36,K36))","v":{"$error":"#VALUE!"}},{"$f":"IF(IF(L36>H36,H36,L36)<J36,J36,IF(L36>H36,H36,L36))","v":{"$error":"#VALUE!"}},{"$f":"IF(IF(0.2*LFL455A*'A2L Calculator (above ground)'!D50>I36,I36,0.2*LFL455A*'A2L Calculator (above ground)'!D50)<J36,J36,IF(0.2*LFL455A*'A2L Calculator (above ground)'!D50>I36,I36,0.2*LFL455A*'A2L Calculator (above ground)'!D50))","v":{"$error":"#VALUE!"}},{"$f":"N52","v":{"$error":"#VALUE!"}},{"$f":"N52","v":{"$error":"#VALUE!"}},{"$f":"IF(IF(0.2*LFL455A*'A2L Calculator (above ground)'!D50<=25,0.2*LFL455A*'A2L Calculator (above ground)'!D50,25)<J36,J36,IF(0.2*LFL455A*'A2L Calculator (above ground)'!D50<=25,0.2*LFL455A*'A2L Calculator (above ground)'!D50,25))","v":{"$error":"#VALUE!"}},{"$f":"IF(IF(K36>H36,H36,K36)<J36,J36,IF(K36>H36,H36,K36))","v":{"$error":"#VALUE!"}},{"$f":"IF(IF(L36>H36,H36,L36)<J36,J36,IF(L36>H36,H36,L36))","v":{"$error":"#VALUE!"}},{"$f":"IF(IF(0.2*LFL455A*'A2L Calculator (above ground)'!D50<=50,0.2*LFL455A*'A2L Calculator (above ground)'!D50,50)<J36,J36,IF(0.2*LFL455A *'A2L Calculator (above ground)'!D50<=50,0.2*LFL455A*'A2L Calculator (above ground)'!D50,50))","v":{"$error":"#VALUE!"}},{"$f":"T52","v":{"$error":"#VALUE!"}},{"$f":"T52","v":{"$error":"#VALUE!"}},"No Charge Restriction","No Charge Restriction","No Charge Restriction","No Charge Restriction",{"$f":"H36","v":84.045000000000002},{"$f":"H36","v":84.045000000000002},{"$f":"H36","v":84.045000000000002}]
["Non Sealed",{"$f":"0.2*LFL455A*'A2L Calculator (above ground)'!D50","v":{"$error":"#VALUE!"}},{"$f":"0.2*LFL455A*'A2L Calculator (above ground)'!D50","v":{"$error":"#VALUE!"}},{"$f":"0.2*LFL455A*'A2L Calculator (above ground)'!D50","v":{"$error":"#VALUE!"}},{"$f":"0.2*LFL455A*'A2L Calculator (above ground)'!D50","v":{"$error":"#VALUE!"}},{"$f":"IF(IF(K36>H36,H36,K36)<J36,K36,IF(K36>H36,H35,K36))","v":{"$error":"#VALUE!"}},{"$f":"IF(IF(L36>H36,H36,L36)<J36,L36,IF(L36>H36,H36,L36))","v":{"$error":"#VALUE!"}},{"$f":"0.2*LFL455A*'A2L Calculator (above ground)'!D50","v":{"$error":"#VALUE!"}},{"$f":"0.2*LFL455A*'A2L Calculator (above ground)'!D50","v":{"$error":"#VALUE!"}},{"$f":"0.2*LFL455A*'A2L Calculator (above ground)'!D50","v":{"$error":"#VALUE!"}},{"$f":"0.2*LFL455A*'A2L Calculator (above ground)'!D50","v":{"$error":"#VALUE!"}},{"$f":"IF(IF(K36>H36,H36,K36)<J36,K36,IF(K36>H36,H36,K36))","v":{"$error":"#VALUE!"}},{"$f":"IF(IF(L36>H36,H36,L36)<J36,L36,IF(L36>H36,H36,L36))","v":{"$error":"#VALUE!"}},{"$f":"0.2*LFL455A*'A2L Calculator (above ground)'!D50","v":{"$error":"#VALUE!"}},{"$f":"0.2*LFL455A*'A2L Calculator (above ground)'!D50","v":{"$error":"#VALUE!"}},{"$f":"0.2*LFL455A*'A2L Calculator (above ground)'!D50","v":{"$error":"#VALUE!"}},{"$f":"0.2*LFL455A*'A2L Calculator (above ground)'!D50","v":{"$error":"#VALUE!"}},{"$f":"IF(IF(K36>H36,H36,K36)<J36,K36,IF(K36>H36,H36,K36))","v":{"$error":"#VALUE!"}},{"$f":"IF(IF(L36>H36,H36,L36)<J36,L36,IF(L36>H36,H36,L36))","v":{"$error":"#VALUE!"}},{"$f":"0.2*LFL455A*'A2L Calculator (above ground)'!D50","v":{"$error":"#VALUE!"}},{"$f":"0.2*LFL455A*'A2L Calculator (above ground)'!D50","v":{"$error":"#VALUE!"}},{"$f":"0.2*LFL455A*'A2L Calculator (above ground)'!D50","v":{"$error":"#VALUE!"}},"No Charge Restriction",null,null,null,{"$f":"AA52","v":84.045000000000002},{"$f":"AB52","v":84.045000000000002},{"$f":"AC52","v":84.045000000000002}]
["R152a"]
["Non Sealed"]
["R1234yf",{"$f":"IF(IF(0.2*LFL1234yf*'A2L Calculator (above ground)'!D50>I38,I38,0.2*LFL1234yf*'A2L Calculator (above ground)'!D50)<J38,J38,IF(0.2*LFL1234yf*'A2L Calculator (above ground)'!D50>I38,I38,0.2*LFL1234yf*'A2L Calculator (above ground)'!D50))","v":{"$error":"#VALUE!"}},{"$f":"B56","v":{"$error":"#VALUE!"}},{"$f":"B56","v":{"$error":"#VALUE!"}},{"$f":"IF(IF(0.2*LFL1234yf*'A2L Calculator (above ground)'!D50>I38,I38,0.2*LFL1234yf*'A2L Calculator (above ground)'!D50)<J38,J38,IF(0.2*LFL1234yf*'A2L Calculator (above ground)'!D50>I38,I38,0.2*LFL1234yf*'A2L Calculator (above ground)'!D50))","v":{"$error":"#VALUE!"}},{"$f":"IF(IF(K38>H38,H38,K38)<J38,J38,IF(K38>H38,H38,K38))","v":{"$error":"#VALUE!"}},{"$f":"IF(IF(L38>H38,H38,L38)<J38,J38,IF(L38>H38,H38,L38))","v":{"$error":"#VALUE!"}},{"$f":"IF(IF(0.2*LFL1234yf*'A2L Calculator (above ground)'!D50>I38,I38,0.2*LFL1234yf*'A2L Calculator (above ground)'!D50)<J38,J38,IF(0.2*LFL1234yf*'A2L Calculator (above ground)'!D50>I38,I38,0.2*LFL1234yf*'A2L Calculator (above ground)'!D50))","v":{"$error":"#VALUE!"}},{"$f":"H56","v":{"$error":"#VALUE!"}},{"$f":"H56","v":{"$error":"#VALUE!"}},{"$f":"IF(IF(0.2*LFL1234yf*'A2L Calculator (above ground)'!D50<=25,0.2*LFL1234yf*'A2L Calculator (above ground)'!D50,25)<J38,J38,IF(0.2*LFL1234yf*'A2L Calculator (above ground)'!D50<=25,0.2*LFL1234yf*'A2L Calculator (above ground)'!D50,25))","v":{"$error":"#VALUE!"}},{"$f":"IF(IF(K38>H38,H38,K38)<J38,J38,IF(K38>H38,H38,K38))","v":{"$error":"#VALUE!"}},{"$f":"IF(IF(L38>H38,H38,L38)<J38,J38,IF(L38>H38,H38,L38))","v":{"$error":"#VALUE!"}},{"$f":"IF(IF(0.2*LFL1234yf*'A2L Calculator (above ground)'!D50>I38,I38,0.2*LFL1234yf*'A2L Calculator (above ground)'!D50)<J38,J38,IF(0.2*LFL1234yf*'A2L Calculator (above ground)'!D50>I38,I38,0.2*LFL1234yf*'A2L Calculator (above ground)'!D50))","v":{"$error":"#VALUE!"}},{"$f":"N56","v":{"$error":"#VALUE!"}},{"$f":"N56","v":{"$error":"#VALUE!"}},{"$f":"IF(IF(0.2*LFL1234yf*'A2L Calculator (above ground)'!D50<=25,0.2*LFL1234yf*'A2L Calculator (above ground)'!D50,25)<J38,J38,IF(0.2*LFL1234yf*'A2L Calculator (above ground)'!D50<=25,0.2*LFL1234yf*'A2L Calculator (above ground)'!D50,25))","v":{"$error":"#VALUE!"}},{"$f":"IF(IF(K38>H38,H38,K38)<J38,J38,IF(K38>H38,H38,K38))","v":{"$error":"#VALUE!"}},{"$f":"IF(IF(L38>H38,H38,L38)<J38,J38,IF(L38>H38,H38,L38))","v":{"$error":"#VALUE!"}},{"$f":"IF(IF(0.2*LFL1234yf*'A2L Calculator (above ground)'!D50<=50,0.2*LFL1234yf*'A2L Calculator (above ground)'!D50,50)<J38,J38,IF(0.2*LFL1234yf *'A2L Calculator (above ground)'!D50<=50,0.2*LFL1234yf*'A2L Calculator (above ground)'!D50,50))","v":{"$error":"#VALUE!"}},{"$f":"T56","v":{"$error":"#VALUE!"}},{"$f":"T56","v":{"$error":"#VALUE!"}},"No Charge Restriction","No Charge Restriction","No Charge Restriction","No Charge Restriction",{"$f":"H38","v":56.355000000000004},{"$f":"H38","v":56.355000000000004},{"$f":"H38","v":56.355000000000004}]
["Non Sealed",{"$f":"0.2*LFL1234yf*'A2L Calculator (above ground)'!D50","v":{"$error":"#VALUE!"}},{"$f":"0.2*LFL1234yf*'A2L Calculator (above ground)'!D50","v":{"$error":"#VALUE!"}},{"$f":"0.2*LFL1234yf*'A2L Calculator (above ground)'!D50","v":{"$error":"#VALUE!"}},{"$f":"0.2*LFL1234yf*'A2L Calculator (above ground)'!D50","v":{"$error":"#VALUE!"}},{"$f":"IF(IF(K38>H38,H38,K38)<J38,K38,IF(K38>H38,H38,K38))","v":{"$error":"#VALUE!"}},{"$f":"IF(IF(L38>H38,H38,L38)<J38,L38,IF(L38>H38,H38,L38))","v":{"$error":"#VALUE!"}},{"$f":"0.2*LFL1234yf*'A2L Calculator (above ground)'!D50","v":{"$error":"#VALUE!"}},{"$f":"0.2*LFL1234yf*'A2L Calculator (above ground)'!D50","v":{"$error":"#VALUE!"}},{"$f":"0.2*LFL1234yf*'A2L Calculator (above ground)'!D50","v":{"$error":"#VALUE!"}},{"$f":"0.2*LFL1234yf*'A2L Calculator (above ground)'!D50","v":{"$error":"#VALUE!"}},{"$f":"IF(IF(K38>H38,H38,K38)<J38,K38,IF(K38>H38,H38,K38))","v":{"$error":"#VALUE!"}},{"$f":"IF(IF(L38>H38,H38,L38)<J38,L38,IF(L38>H38,H38,L38))","v":{"$error":"#VALUE!"}},{"$f":"0.2*LFL1234yf*'A2L Calculator (above ground)'!D50","v":{"$error":"#VALUE!"}},{"$f":"0.2*LFL1234yf*'A2L Calculator (above ground)'!D50","v":{"$error":"#VALUE!"}},{"$f":"0.2*LFL1234yf*'A2L Calculator (above ground)'!D50","v":{"$error":"#VALUE!"}},{"$f":"0.2*LFL1234yf*'A2L Calculator (above ground)'!D50","v":{"$error":"#VALUE!"}},{"$f":"IF(IF(K38>H38,H38,K38)<J38,K38,IF(K38>H38,H38,K38))","v":{"$error":"#VALUE!"}},{"$f":"IF(IF(L38>H38,H38,L38)<J38,L38,IF(L38>H38,H38,L38))","v":{"$error":"#VALUE!"}},{"$f":"0.2*LFL1234yf*'A2L Calculator (above ground)'!D50","v":{"$error":"#VALUE!"}},{"$f":"0.2*LFL1234yf*'A2L Calculator (above ground)'!D50","v":{"$error":"#VALUE!"}},{"$f":"0.2*LFL1234yf*'A2L Calculator (above ground)'!D50","v":{"$error":"#VALUE!"}},"No Charge Restriction",null,null,null,{"$f":"AA56","v":56.355000000000004},{"$f":"AB56","v":56.355000000000004},{"$f":"AC56","v":56.355000000000004}]
["R1234ze",{"$f":"IF(IF(0.2*LFL1234ze*'A2L Calculator (above ground)'!D50>I39,I39,0.2*LFL1234ze*'A2L Calculator (above ground)'!D50)<J39,J39,IF(0.2*LFL1234ze*'A2L Calculator (above ground)'!D50>I39,I39,0.2*LFL1234ze*'A2L Calculator (above ground)'!D50))","v":{"$error":"#VALUE!"}},{"$f":"B58","v":{"$error":"#VALUE!"}},{"$f":"B58","v":{"$error":"#VALUE!"}},{"$f":"IF(IF(0.2*LFL1234ze*'A2L Calculator (above ground)'!D50>I39,I39,0.2*LFL1234ze*'A2L Calculator (above ground)'!D50)<J39,J39,IF(0.2*LFL1234ze*'A2L Calculator (above ground)'!D50>I39,I39,0.2*LFL1234ze*'A2L Calculator (above ground)'!D50))","v":{"$error":"#VALUE!"}},{"$f":"IF(IF(K39>H39,H39,K39)<J39,J39,IF(K39>H39,H39,K39))","v":{"$error":"#VALUE!"}},{"$f":"IF(IF(L39>H39,H39,L39)<J39,J39,IF(L39>H39,H39,L39))","v":{"$error":"#VALUE!"}},{"$f":"IF(IF(0.2*LFL1234ze*'A2L Calculator (above ground)'!D50>I39,I39,0.2*LFL1234ze*'A2L Calculator (above ground)'!D50)<J39,J39,IF(0.2*LFL1234ze*'A2L Calculator (above ground)'!D50>I39,I39,0.2*LFL1234ze*'A2L Calculator (above ground)'!D50))","v":{"$error":"#VALUE!"}},{"$f":"H58","v":{"$error":"#VALUE!"}},{"$f":"H58","v":{"$error":"#VALUE!"}},{"$f":"IF(IF(0.2*LFL1234ze*'A2L Calculator (above ground)'!D50<=25,0.2*LFL1234ze*'A2L Calculator (above ground)'!D50,25)<J39,J39,IF(0.2*LFL1234ze*'A2L Calculator (above ground)'!D50<=25,0.2*LFL1234ze*'A2L Calculator (above ground)'!D50,25))","v":{"$error":"#VALUE!"}},{"$f":"IF(IF(K39>H39,H39,K39)<J39,J39,IF(K39>H39,H39,K39))","v":{"$error":"#VALUE!"}},{"$f":"IF(IF(L39>H39,H39,L39)<J39,J39,IF(L39>H39,H39,L39))","v":{"$error":"#VALUE!"}},{"$f":"IF(IF(0.2*LFL1234ze*'A2L Calculator (above ground)'!D50>I39,I39,0.2*LFL1234ze*'A2L Calculator (above ground)'!D50)<J39,J39,IF(0.2*LFL1234ze*'A2L Calculator (above ground)'!D50>I39,I39,0.2*LFL1234ze*'A2L Calculator (above ground)'!D50))","v":{"$error":"#VALUE!"}},{"$f":"N58","v":{"$error":"#VALUE!"}},{"$f":"N58","v":{"$error":"#VALUE!"}},{"$f":"IF(IF(0.2*LFL1234ze*'A2L Calculator (above ground)'!D50<=25,0.2*LFL1234ze*'A2L Calculator (above ground)'!D50,25)<J39,J39,IF(0.2*LFL1234ze*'A2L Calculator (above ground)'!D50<=25,0.2*LFL1234ze*'A2L Calculator (above ground)'!D50,25))","v":{"$error":"#VALUE!"}},{"$f":"IF(IF(K39>H39,H39,K39)<J39,J39,IF(K39>H39,H39,K39))","v":{"$error":"#VALUE!"}},{"$f":"IF(IF(L39>H39,H39,L39)<J39,J39,IF(L39>H39,H39,L39))","v":{"$error":"#VALUE!"}},{"$f":"IF(IF(0.2*LFL1234ze*'A2L Calculator (above ground)'!D50<=50,0.2*LFL1234ze*'A2L Calculator (above ground)'!D50,50)<J39,J39,IF(0.2*LFL1234ze *'A2L Calculator (above ground)'!D50<=50,0.2*LFL1234ze*'A2L Calculator (above ground)'!D50,50))","v":{"$error":"#VALUE!"}},{"$f":"T58","v":{"$error":"#VALUE!"}},{"$f":"T58","v":{"$error":"#VALUE!"}},"No Charge Restriction","No Charge Restriction","No Charge Restriction","No Charge Restriction",{"$f":"H39","v":59.085000000000001},{"$f":"H39","v":59.085000000000001},{"$f":"H39","v":59.085000000000001}]
["Non Sealed",{"$f":"0.2*LFL1234ze*'A2L Calculator (above ground)'!D50","v":{"$error":"#VALUE!"}},{"$f":"0.2*LFL1234ze*'A2L Calculator (above ground)'!D50","v":{"$error":"#VALUE!"}},{"$f":"0.2*LFL1234ze*'A2L Calculator (above ground)'!D50","v":{"$error":"#VALUE!"}},{"$f":"0.2*LFL1234ze*'A2L Calculator (above ground)'!D50","v":{"$error":"#VALUE!"}},{"$f":"IF(IF(K39>H39,H39,K39)<J39,K39,IF(K39>H39,H39,K39))","v":{"$error":"#VALUE!"}},{"$f":"IF(IF(L39>H39,H39,L39)<J39,L39,IF(L39>H39,H39,L39))","v":{"$error":"#VALUE!"}},{"$f":"0.2*LFL1234ze*'A2L Calculator (above ground)'!D50","v":{"$error":"#VALUE!"}},{"$f":"0.2*LFL1234ze*'A2L Calculator (above ground)'!D50","v":{"$error":"#VALUE!"}},{"$f":"0.2*LFL1234ze*'A2L Calculator (above ground)'!D50","v":{"$error":"#VALUE!"}},{"$f":"0.2*LFL1234ze*'A2L Calculator (above ground)'!D50","v":{"$error":"#VALUE!"}},{"$f":"IF(IF(K39>H39,H39,K39)<J39,K39,IF(K39>H39,H39,K39))","v":{"$error":"#VALUE!"}},{"$f":"IF(IF(L39>H39,H39,L39)<J39,L39,IF(L39>H39,H39,L39))","v":{"$error":"#VALUE!"}},{"$f":"0.2*LFL1234ze*'A2L Calculator (above ground)'!D50","v":{"$error":"#VALUE!"}},{"$f":"0.2*LFL1234ze*'A2L Calculator (above ground)'!D50","v":{"$error":"#VALUE!"}},{"$f":"0.2*LFL1234ze*'A2L Calculator (above ground)'!D50","v":{"$error":"#VALUE!"}},{"$f":"0.2*LFL1234ze*'A2L Calculator (above ground)'!D50","v":{"$error":"#VALUE!"}},{"$f":"IF(IF(K39>H39,H39,K39)<J39,K39,IF(K39>H39,H39,K39))","v":{"$error":"#VALUE!"}},{"$f":"IF(IF(L39>H39,H39,L39)<J39,L39,IF(L39>H39,H39,L39))","v":{"$error":"#VALUE!"}},{"$f":"0.2*LFL1234ze*'A2L Calculator (above ground)'!D50","v":{"$error":"#VALUE!"}},{"$f":"0.2*LFL1234ze*'A2L Calculator (above ground)'!D50","v":{"$error":"#VALUE!"}},{"$f":"0.2*LFL1234ze*'A2L Calculator (above ground)'!D50","v":{"$error":"#VALUE!"}},"No Charge Restriction",null,null,null,{"$f":"AA58","v":59.085000000000001},{"$f":"AB58","v":59.085000000000001},{"$f":"AC58","v":59.085000000000001}]
[null,{"$f":"IF(IF(0.2*LFL*'A2L Calculator (above ground)'!D50>I40,I40,0.2*LFL*'A2L Calculator (above ground)'!D50)<J40,J40,IF(0.2*LFL*'A2L Calculator (above ground)'!D50>I40,I40,0.2*LFL*'A2L Calculator (above ground)'!D50))","v":{"$error":"#VALUE!"}},{"$f":"B60","v":{"$error":"#VALUE!"}},{"$f":"B60","v":{"$error":"#VALUE!"}},{"$f":"IF($P$70=\"OAa21\",E42,IF($P$70=\"OAa22\",E44,IF($P$70=\"OAa23\",E46,IF($P$70=\"OAa24\",E48,IF($P$70=\"OAa25\",E50,IF($P$70=\"OAa26\",E52,IF($P$70=\"OAa27\",E54,IF($P$70=\"OAa28\",E56,IF($P$70=\"OAa29\",E58)))))))))","v":false},false,false,{"$f":"IF($P$70=\"OAb11\",H42,IF($P$70=\"OAb12\",H44,IF($P$70=\"OAb13\",H46,IF($P$70=\"OAb14\",H48,IF($P$70=\"OAb15\",H50,IF($P$70=\"OAb16\",H52,IF($P$70=\"OAb17\",H54,IF($P$70=\"OAb18\",H56,IF($P$70=\"OAb19\",H58)))))))))","v":false},false,false,{"$f":"IF($P$70=\"OAb21\",K42,IF($P$70=\"OAb22\",K44,IF($P$70=\"OAb23\",K46,IF($P$70=\"OAb24\",K48,IF($P$70=\"OAb25\",K50,IF($P$70=\"OAb26\",K52,IF($P$70=\"OAb27\",K54,IF($P$70=\"OAb28\",K56,IF($P$70=\"OAb29\",K58)))))))))","v":false},false,false,{"$f":"IF($P$70=\"OAc11\",N42,IF($P$70=\"OAc12\",N44,IF($P$70=\"OAc13\",N46,IF($P$70=\"OAc14\",N48,IF($P$70=\"OAc15\",N50,IF($P$70=\"OAc16\",N52,IF($P$70=\"OAc17\",N54,IF($P$70=\"OAc18\",N56,IF($P$70=\"OAc19\",N58)))))))))","v":false},false,false,{"$f":"IF($P$70=\"OAc21\",Q42,IF($P$70=\"OAc22\",Q44,IF($P$70=\"OAc23\",Q46,IF($P$70=\"OAc24\",Q48,IF($P$70=\"OAc25\",Q50,IF($P$70=\"OAc26\",Q52,IF($P$70=\"OAc27\",Q54,IF($P$70=\"OAc28\",Q56,IF($P$70=\"OAc29\",Q58)))))))))","v":false},false,false,{"$f":"IF($P$70=\"1Persc11\",T42,IF($P$70=\"1Persc12\",T44,IF($P$70=\"1Persc13\",T46,IF($P$70=\"1Persc14\",T48,IF($P$70=\"1Persc15\",T50,IF($P$70=\"1Persc16\",T52,IF($P$70=\"1Persc17\",T54,IF($P$70=\"1Persc18\",T56,IF($P$70=\"1Persc19\",T58)))))))))","v":false},false,false,{"$f":"IF($P$70=\"1Persc21\",W42,IF($P$70=\"1Persc22\",W44,IF($P$70=\"1Persc23\",W46,IF($P$70=\"1Persc24\",W48,IF($P$70=\"1Persc25\",W50,IF($P$70=\"1Persc26\",W52,IF($P$70=\"1Persc27\",W54,IF($P$70=\"1Persc28\",W56,IF($P$70=\"1Persc29\",W58)))))))))","v":false},{"$f":"IF('A2L Calculator (above ground)'!$AB$7=\"3\",X42,IF('A2L Calculator (above ground)'!$AB$7=\"3\",X44,IF('A2L Calculator (above ground)'!$AB$7=\"3\",X46,IF('A2L Calculator (above ground)'!$AB$7=\"3\",X48,IF('A2L Calculator (above ground)'!$AB$7=\"3\",X50,IF('A2L Calculator (above ground)'!$AB$7=\"3\",X52,IF('A2L Calculator (above ground)'!$AB$7=\"3\",X54,IF('A2L Calculator (above ground)'!$AB$7=\"3\",X56,IF('A2L Calculator (above ground)'!$AB$7=\"3\"\"\",X58)))))))))","v":false},{"$f":"IF('A2L Calculator (above ground)'!$AB$7=\"3\",Y42,IF('A2L Calculator (above ground)'!$AB$7=\"3\",Y44,IF('A2L Calculator (above ground)'!$AB$7=\"3\",Y46,IF('A2L Calculator (above ground)'!$AB$7=\"3\",Y48,IF('A2L Calculator (above ground)'!$AB$7=\"3\",Y50,IF('A2L Calculator (above ground)'!$AB$7=\"3\",Y52,IF('A2L Calculator (above ground)'!$AB$7=\"3\",Y54,IF('A2L Calculator (above ground)'!$AB$7=\"3\",Y56,IF('A2L Calculator (above ground)'!$AB$7=\"3\"\"\",Y58)))))))))","v":false},{"$f":"IF('A2L Calculator (above ground)'!$AB$7=\"3\",Z42,IF('A2L Calculator (above ground)'!$AB$7=\"3\",Z44,IF('A2L Calculator (above ground)'!$AB$7=\"3\",Z46,IF('A2L Calculator (above ground)'!$AB$7=\"3\",Z48,IF('A2L Calculator (above ground)'!$AB$7=\"3\",Z50,IF('A2L Calculator (above ground)'!$AB$7=\"3\",Z52,IF('A2L Calculator (above ground)'!$AB$7=\"3\",Z54,IF('A2L Calculator (above ground)'!$AB$7=\"3\",Z56,IF('A2L Calculator (above ground)'!$AB$7=\"3\"\"\",Z58)))))))))","v":false},{"$f":"IF('A2L Calculator (above ground)'!$AB$7=\"4\",AA42,IF('A2L Calculator (above ground)'!$AB$7=\"4\",AA44,IF('A2L Calculator (above ground)'!$AB$7=\"4\",AA46,IF('A2L Calculator (above ground)'!$AB$7=\"4\",AA48,IF('A2L Calculator (above ground)'!$AB$7=\"4\",AA50,IF('A2L Calculator (above ground)'!$AB$7=\"4\",AA52,IF('A2L Calculator (above ground)'!$AB$7=\"4\",AA54,IF('A2L Calculator (above ground)'!$AB$7=\"4\",AA56,IF('A2L Calculator (above ground)'!$AB$7=\"4\"\"\",AA58)))))))))","v":false},{"$f":"IF('A2L Calculator (above ground)'!$AB$7=\"4\",AB42,IF('A2L Calculator (above ground)'!$AB$7=\"4\",AB44,IF('A2L Calculator (above ground)'!$AB$7=\"4\",AB46,IF('A2L Calculator (above ground)'!$AB$7=\"4\",AB48,IF('A2L Calculator (above ground)'!$AB$7=\"4\",AB50,IF('A2L Calculator (above ground)'!$AB$7=\"4\",AB52,IF('A2L Calculator (above ground)'!$AB$7=\"4\",AB54,IF('A2L Calculator (above ground)'!$AB$7=\"4\",AB56,IF('A2L Calculator (above ground)'!$AB$7=\"4\"\"\",AB58)))))))))","v":false},{"$f":"IF('A2L Calculator (above ground)'!$AB$7=\"4\",AC42,IF('A2L Calculator (above ground)'!$AB$7=\"4\",AC44,IF('A2L Calculator (above ground)'!$AB$7=\"4\",AC46,IF('A2L Calculator (above ground)'!$AB$7=\"4\",AC48,IF('A2L Calculator (above ground)'!$AB$7=\"4\",AC50,IF('A2L Calculator (above ground)'!$AB$7=\"4\",AC52,IF('A2L Calculator (above ground)'!$AB$7=\"4\",AC54,IF('A2L Calculator (above ground)'!$AB$7=\"4\",AC56,IF('A2L Calculator (above ground)'!$AB$7=\"4\"\"\",AC58)))))))))","v":false}]
[null,{"$f":"0.2*LFL*'A2L Calculator (above ground)'!D50","v":{"$error":"#VALUE!"}},{"$f":"B61","v":{"$error":"#VALUE!"}},{"$f":"B61","v":{"$error":"#VALUE!"}},false,false,false,false,false,false,false,false,false,false,false,false,false,false,false,false,false,false,{"$f":"IF($P$70=\"1Persc21\",W43,IF($P$70=\"1Persc22\",W45,IF($P$70=\"1Persc23\",W47,IF($P$70=\"1Persc24\",W49,IF($P$70=\"1Persc25\",W51,IF($P$70=\"1Persc26\",W53,IF($P$70=\"1Persc27\",W55,IF($P$70=\"1Persc28\",W57,IF($P$70=\"1Persc29\",W59)))))))))","v":false},{"$f":"IF('A2L Calculator (above ground)'!$AB$7=\"3\",X43,IF('A2L Calculator (above ground)'!$AB$7=\"3\",X45,IF('A2L Calculator (above ground)'!$AB$7=\"3\",X47,IF('A2L Calculator (above ground)'!$AB$7=\"3\",X49,IF('A2L Calculator (above ground)'!$AB$7=\"3\",X51,IF('A2L Calculator (above ground)'!$AB$7=\"3\",X53,IF('A2L Calculator (above ground)'!$AB$7=\"3\",X55,IF('A2L Calculator (above ground)'!$AB$7=\"3\",X57,IF('A2L Calculator (above ground)'!$AB$7=\"3\"\"\",X59)))))))))","v":false},{"$f":"IF('A2L Calculator (above ground)'!$AB$7=\"3\",Y43,IF('A2L Calculator (above ground)'!$AB$7=\"3\",Y45,IF('A2L Calculator (above ground)'!$AB$7=\"3\",Y47,IF('A2L Calculator (above ground)'!$AB$7=\"3\",Y49,IF('A2L Calculator (above ground)'!$AB$7=\"3\",Y51,IF('A2L Calculator (above ground)'!$AB$7=\"3\",Y53,IF('A2L Calculator (above ground)'!$AB$7=\"3\",Y55,IF('A2L Calculator (above ground)'!$AB$7=\"3\",Y57,IF('A2L Calculator (above ground)'!$AB$7=\"3\"\"\",Y59)))))))))","v":false},{"$f":"IF('A2L Calculator (above ground)'!$AB$7=\"3\",Z43,IF('A2L Calculator (above ground)'!$AB$7=\"3\",Z45,IF('A2L Calculator (above ground)'!$AB$7=\"3\",Z47,IF('A2L Calculator (above ground)'!$AB$7=\"3\",Z49,IF('A2L Calculator (above ground)'!$AB$7=\"3\",Z51,IF('A2L Calculator (above ground)'!$AB$7=\"3\",Z53,IF('A2L Calculator (above ground)'!$AB$7=\"3\",Z55,IF('A2L Calculator (above ground)'!$AB$7=\"3\",Z57,IF('A2L Calculator (above ground)'!$AB$7=\"3\"\"\",Z59)))))))))","v":false},{"$f":"IF('A2L Calculator (above ground)'!$AB$7=\"4\",AA43,IF('A2L Calculator (above ground)'!$AB$7=\"4\",AA45,IF('A2L Calculator (above ground)'!$AB$7=\"4\",AA47,IF('A2L Calculator (above ground)'!$AB$7=\"4\",AA49,IF('A2L Calculator (above ground)'!$AB$7=\"4\",AA51,IF('A2L Calculator (above ground)'!$AB$7=\"4\",AA53,IF('A2L Calculator (above ground)'!$AB$7=\"4\",AA55,IF('A2L Calculator (above ground)'!$AB$7=\"4\",AA57,IF('A2L Calculator (above ground)'!$AB$7=\"4\"\"\",AA59)))))))))","v":false},{"$f":"IF('A2L Calculator (above ground)'!$AB$7=\"4\",AB43,IF('A2L Calculator (above ground)'!$AB$7=\"4\",AB45,IF('A2L Calculator (above ground)'!$AB$7=\"4\",AB47,IF('A2L Calculator (above ground)'!$AB$7=\"4\",AB49,IF('A2L Calculator (above ground)'!$AB$7=\"4\",AB51,IF('A2L Calculator (above ground)'!$AB$7=\"4\",AB53,IF('A2L Calculator (above ground)'!$AB$7=\"4\",AB55,IF('A2L Calculator (above ground)'!$AB$7=\"4\",AB57,IF('A2L Calculator (above ground)'!$AB$7=\"4\"\"\",AB59)))))))))","v":false},{"$f":"IF('A2L Calculator (above ground)'!$AB$7=\"4\",AC43,IF('A2L Calculator (above ground)'!$AB$7=\"4\",AC45,IF('A2L Calculator (above ground)'!$AB$7=\"4\",AC47,IF('A2L Calculator (above ground)'!$AB$7=\"4\",AC49,IF('A2L Calculator (above ground)'!$AB$7=\"4\",AC51,IF('A2L Calculator (above ground)'!$AB$7=\"4\",AC53,IF('A2L Calculator (above ground)'!$AB$7=\"4\",AC55,IF('A2L Calculator (above ground)'!$AB$7=\"4\",AC57,IF('A2L Calculator (above ground)'!$AB$7=\"4\"\"\",AC59)))))))))","v":false}]
["Result",{"$f":"IF(IF(0.2*LFL*'A2L Calculator (above ground)'!D50>I40,I40,0.2*LFL*'A2L Calculator (above ground)'!D50)<J40,J40,IF(0.2*LFL*'A2L Calculator (above ground)'!D50>I40,I40,0.2*LFL*'A2L Calculator (above ground)'!D50))","v":{"$error":"#VALUE!"}},{"$f":"C60","v":{"$error":"#VALUE!"}},{"$f":"D60","v":{"$error":"#VALUE!"}},null,{"$f":"IF($A$65=\"OAa2\",F60)","v":false},{"$f":"IF($A$65=\"OAa2\",G60)","v":false},null,{"$f":"IF($A$65=\"OAb1\",I60,\"N/A\")","v":"N/A"},{"$f":"IF($A$65=\"OAb1\",J60,\"N/A\")","v":"N/A"},null,{"$f":"IF($A$65=\"OAb2\",L60,\"N/A\")","v":"N/A"},{"$f":"IF($A$65=\"OAb2\",M60,\"N/A\")","v":"N/A"},null,{"$f":"IF($A$65=\"OAc1\",O60,\"N/A\")","v":"N/A"},{"$f":"IF($A$65=\"OAc1\",P60,\"N/A\")","v":"N/A"},null,{"$f":"IF($A$65=\"OAc2\",R60,\"N/A\")","v":"N/A"},{"$f":"IF($A$65=\"OAc2\",S60,\"N/A\")","v":"N/A"},null,{"$f":"IF($A$65=\"1Persc1\",U60,\"N/A\")","v":"N/A"},{"$f":"IF($A$65=\"1Persc1\",V60,\"N/A\")","v":"N/A"},{"$f":"IF($A$65=\"1Persc2\",W60,\"N/A\")","v":"N/A"},"N/A","N/A","N/A","N/A","N/A","N/A"]
["Non Sealed",{"$f":"B61","v":{"$error":"#VALUE!"}},{"$f":"IF(IF(0.2*LFL*'A2L Calculator (above ground)'!D50<I40,I40,0.2*LFL*'A2L Calculator (above ground)'!D50)<J40,J40,IF(0.2*LFL*'A2L Calculator (above ground)'!D50>I40,I40,0.2*LFL*'A2L Calculator (above ground)'!D50))","v":{"$error":"#VALUE!"}},{"$f":"IF(IF(0.2*LFL*'A2L Calculator (above ground)'!D50<I40,I40,0.2*LFL*'A2L Calculator (above ground)'!D50)<J40,J40,IF(0.2*LFL*'A2L Calculator (above ground)'!D50>I40,I40,0.2*LFL*'A2L Calculator (above ground)'!D50))","v":{"$error":"#VALUE!"}},null,{"$f":"IF($A$65=\"OAa2\",F61)","v":false},{"$f":"IF($A$65=\"OAa2\",G61)","v":false},null,{"$f":"IF(IF(0.2*LFL*'A2L Calculator (above ground)'!D50<I40,I40,0.2*LFL*'A2L Calculator (above ground)'!D50)<J40,J40,IF(0.2*LFL*'A2L Calculator (above ground)'!D50>I40,I40,0.2*LFL*'A2L Calculator (above ground)'!D50))","v":{"$error":"#VALUE!"}},{"$f":"IF(IF(0.2*LFL*'A2L Calculator (above ground)'!D50<I40,I40,0.2*LFL*'A2L Calculator (above ground)'!D50)<J40,J40,IF(0.2*LFL*'A2L Calculator (above ground)'!D50>I40,I40,0.2*LFL*'A2L Calculator (above ground)'!D50))","v":{"$error":"#VALUE!"}},null,{"$f":"IF($A$65=\"OAb2\",L61,\"N/A\")","v":"N/A"},{"$f":"IF($A$65=\"OAb2\",M61,\"N/A\")","v":"N/A"},null,{"$f":"IF(IF(0.2*LFL*'A2L Calculator (above ground)'!D50<I40,I40,0.2*LFL*'A2L Calculator (above ground)'!D50)<J40,J40,IF(0.2*LFL*'A2L Calculator (above ground)'!D50>I40,I40,0.2*LFL*'A2L Calculator (above ground)'!D50))","v":{"$error":"#VALUE!"}},{"$f":"IF(IF(0.2*LFL*'A2L Calculator (above ground)'!D50<I40,I40,0.2*LFL*'A2L Calculator (above ground)'!D50)<J40,J40,IF(0.2*LFL*'A2L Calculator (above ground)'!D50>I40,I40,0.2*LFL*'A2L Calculator (above ground)'!D50))","v":{"$error":"#VALUE!"}},null,{"$f":"IF($A$65=\"OAc2\",R61,\"N/A\")","v":"N/A"},{"$f":"IF($A$65=\"OAc2\",S61,\"N/A\")","v":"N/A"},null,{"$f":"IF($A$65=\"1Persc1\",U61,\"N/A\")","v":"N/A"},{"$f":"IF($A$65=\"1Persc1\",V61,\"N/A\")","v":"N/A"},{"$f":"IF($A$65=\"1Persc2\",W61,\"N/A\")","v":"N/A"},"N/A","N/A","N/A","N/A","N/A","N/A"]
[]
[{"$f":"'A2L Calculator (above ground)'!AB24&'A2L Calculator (above ground)'!AB14&'A2L Calculator (above ground)'!AB7","v":"HCa1"},null,null,null,null,null,null,null,null,null,null,null,null,null,null,null,null,{"$f":"IF($A$65=\"OAc2\",R61,\"N/A\")","v":"N/A"}]
["H","C"]
[]
[]
[null,"Refrigerant","QLMV","QLAV","RV/Refri.Carge",null,"Max. Carge QLMV/QLAV","130*LFL*1,5","26*LFL*1,5","4*LFL*1,5","QLMV MAX","QLAV MAX","QLAV result",null,null,"Aktuelle Anwendung im Rechner"]
[null,"R454c",6.0999999999999999E-2,0.14000000000000001,{"$f":"'A2L Calculator (above ground)'!D52/Berechnungen!B41","v":8.0000000000000002E-3},{"$f":"IF(E70<=C70,C70,D70)","v":6.0999999999999999E-2},{"$f":"Berechnungen!B41*F70","v":15.25},{"$f":"130*LFL454C*1.5","v":57.134999999999991},{"$f":"26*LFL454C*1.5","v":11.427},{"$f":"4*LFL454C*1.5","v":1.758},{"$f":"Berechnungen!B41*C70","v":15.25},{"$f":"Berechnungen!B41*D70","v":35},{"$f":"IF(L70>H70,H70,L70)","v":35},null,null,{"$f":"'A2L Calculator (above ground)'!AB24&'A2L Calculator (above ground)'!AB14&'A2L Calculator (above ground)'!AB7&'A2L Calculator (above ground)'!AB31","v":"HCa11"}]
[null,"R454A",5.8000000000000003E-2,0.13,{"$f":"'A2L Calculator (above ground)'!D52/Berechnungen!B41","v":8.0000000000000002E-3},{"$f":"IF(E71<=C71,C71,D71)","v":5.8000000000000003E-2},{"$f":"Berechnungen!B41*F71","v":14.5},{"$f":"130*LFL454A*1.5","v":54.21},{"$f":"26*LFL454A*1.5","v":10.842000000000001},{"$f":"4*LFL454A*1.5","v":1.6680000000000001},{"$f":"Berechnungen!B41*C71","v":14.5},{"$f":"Berechnungen!B41*D71","v":32.5},32.5]
[null,"R454B",6.4000000000000001E-2,0.15,{"$f":"'A2L Calculator (above ground)'!D52/Berechnungen!B41","v":8.0000000000000002E-3},6.4000000000000001E-2,{"$f":"Berechnungen!B41*F72","v":16},{"$f":"130*LFL454B*1.5","v":59.085000000000001},{"$f":"26*LFL454B*1.5","v":11.817},{"$f":"4*LFL454B*1.5","v":1.8180000000000001},{"$f":"Berechnungen!B41*C72","v":16},{"$f":"Berechnungen!B41*D72","v":37.5},37.5]
[null,"R452B",6.5000000000000002E-2,0.15,{"$f":"'A2L Calculator (above ground)'!D52/Berechnungen!B41","v":8.0000000000000002E-3},6.5000000000000002E-2,{"$f":"Berechnungen!B41*F73","v":16.25},{"$f":"130*LFL452B*1.5","v":60.449999999999996},{"$f":"26*LFL452B*1.5","v":12.09},{"$f":"4*LFL452B*1.5","v":1.8599999999999999},{"$f":"Berechnungen!B41*C73","v":16.25},{"$f":"Berechnungen!B41*D73","v":37.5},37.5]
[null,"R32",6.3E-2,0.15,{"$f":"'A2L Calculator (above ground)'!D52/Berechnungen!B41","v":8.0000000000000002E-3},6.3E-2,{"$f":"Berechnungen!B41*F74","v":15.75},{"$f":"130*LFL32a*1.5","v":59.864999999999995},{"$f":"26*LFL32a*1.5","v":11.973000000000001},{"$f":"4*LFL32a*1.5","v":1.8420000000000001},{"$f":"Berechnungen!B41*C74","v":15.75},{"$f":"Berechnungen!B41*D74","v":37.5},37.5]
[null,"R455A",9.1999999999999998E-2,0.21,{"$f":"'A2L Calculator (above ground)'!D52/Berechnungen!B41","v":8.0000000000000002E-3},9.1999999999999998E-2,{"$f":"Berechnungen!B41*F75","v":23},{"$f":"130*LFL455A*1.5","v":84.045000000000002},{"$f":"26*LFL455A*1.5","v":16.808999999999997},{"$f":"4*LFL455A*1.5","v":2.5859999999999999},{"$f":"Berechnungen!B41*C75","v":23},{"$f":"Berechnungen!B41*D75","v":52.5},52.5]
[null,"R152a",null,null,null,0]
[null,"R1234yf",0.06,0.14000000000000001,{"$f":"'A2L Calculator (above ground)'!D52/Berechnungen!B41","v":8.0000000000000002E-3},0.06,{"$f":"Berechnungen!B41*F77","v":15},{"$f":"130*LFL1234yf*1.5","v":56.355000000000004},{"$f":"26*LFL1234yf*1.5","v":11.270999999999999},{"$f":"4*LFL1234yf*1.5","v":1.734},{"$f":"Berechnungen!B41*C77","v":15},{"$f":"Berechnungen!B41*D77","v":35},{"$f":"IF(L77>H77,H77,L77)","v":35}]
[null,"R1234ze",6.3E-2,0.15,{"$f":"'A2L Calculator (above ground)'!D52/Berechnungen!B41","v":8.0000000000000002E-3},6.3E-2,{"$f":"Berechnungen!B41*F78","v":15.75},{"$f":"130*LFL1234ze*1.5","v":59.085000000000001},{"$f":"26*LFL1234ze*1.5","v":11.817},{"$f":"4*LFL1234ze*1.5","v":1.8180000000000001},{"$f":"Berechnungen!B41*C78","v":15.75},{"$f":"Berechnungen!B41*D78","v":37.5},{"$f":"IF(L78>H78,H78,L78)","v":37.5}]
[]
[null,"HCaIC2","HCaIQLMV","HCaIQLAV","HCaIIC2","HCaIIQLMV","HCaIIQLAV","HCbIC2","HCbIQLMV","HCbIQLAV","HCbIIC2","HCbIIQLMV","HCbIIQLAV","HCcIC2","HCcIQLMV","HCcIQLAV","HCcIIC2","HCcIIQLMV","HCcIIQLAV","HCaIII","HCbIII","HCcIII","HCaIV","HCbIV","HCcIV"]
["R454c",{"$f":"IF(IF(2.5*LFL454C^(5/4)*HF*A_2^(1/2)>'QLAV & QLMV'!I70,'QLAV & QLMV'!I70,2.5*LFL454C^(5/4)*HF*A_2^(1/2))<'QLAV & QLMV'!J70,'QLAV & QLMV'!J70,IF(2.5*LFL454C^(5/4)*HF*A_2^(1/2)>'QLAV & QLMV'!I70,'QLAV & QLMV'!I70,2.5*LFL454C^(5/4)*HF*A_2^(1/2)))","v":11.427},{"$f":"B81","v":11.427},{"$f":"B81","v":11.427},{"$f":"IF(2.5*LFL454C^(5/4)*HF*A_2^(1/2)>'QLAV & QLMV'!I70,'QLAV & QLMV'!I70,2.5*LFL454C^(5/4)*HF*A_2^(1/2))","v":11.427},{"$f":"IF(IF(K70>H70,H70,K70)<J70,J70,IF(K70>H70,H70,K70))","v":15.25},{"$f":"IF(IF(L70>H70,H70,L70)<J70,J70,IF(L70>H70,H70,L70))","v":35},{"$f":"B81","v":11.427},11.427,11.427,11.427,15.25,35,{"$f":"B81","v":11.427},11.427,11.427,11.427,15.25,35,"No Charge Restriction","No Charge Restriction","No Charge Restriction",{"$f":"H70","v":57.134999999999991},{"$f":"H70","v":57.134999999999991},{"$f":"H70","v":57.134999999999991}]
["R454A",{"$f":"IF(IF(2.5*LFL454A^(5/4)*HF*A_2^(1/2)>'QLAV & QLMV'!I71,'QLAV & QLMV'!I71,2.5*LFL454A^(5/4)*HF*A_2^(1/2))<'QLAV & QLMV'!J71,'QLAV & QLMV'!J71,IF(2.5*LFL454A^(5/4)*HF*A_2^(1/2)>'QLAV & QLMV'!I71,'QLAV & QLMV'!I71,2.5*LFL454A^(5/4)*HF*A_2^(1/2)))","v":10.842000000000001},10.842000000000001,10.842000000000001,{"$f":"IF(2.5*LFL454A^(5/4)*HF*A_2^(1/2)>'QLAV & QLMV'!I71,'QLAV & QLMV'!I71,2.5*LFL454A^(5/4)*HF*A_2^(1/2))","v":10.842000000000001},14.5,32.5,10.842000000000001,10.842000000000001,10.842000000000001,10.842000000000001,14.5,32.5,10.842000000000001,10.842000000000001,10.842000000000001,10.842000000000001,14.5,32.5,"No Charge Restriction","No Charge Restriction","No Charge Restriction",{"$f":"H71","v":54.21},{"$f":"H71","v":54.21},{"$f":"H71","v":54.21}]
["R454B",{"$f":"IF(IF(2.5*LFL454B^(5/4)*HF*A_2^(1/2)>'QLAV & QLMV'!I72,'QLAV & QLMV'!I72,2.5*LFL454B^(5/4)*HF*A_2^(1/2))<'QLAV & QLMV'!J72,'QLAV & QLMV'!J72,IF(2.5*LFL454B^(5/4)*HF*A_2^(1/2)>'QLAV & QLMV'!I72,'QLAV & QLMV'!I72,2.5*LFL454B^(5/4)*HF*A_2^(1/2)))","v":11.817},11.817,11.817,{"$f":"IF(2.5*LFL454B^(5/4)*HF*A_2^(1/2)>'QLAV & QLMV'!I72,'QLAV & QLMV'!I72,2.5*LFL454B^(5/4)*HF*A_2^(1/2))","v":11.817},16,37.5,11.817,11.817,11.817,11.817,16,37.5,11.817,11.817,11.817,11.817,16,37.5,"No Charge Restriction","No Charge Restriction","No Charge Restriction",{"$f":"H72","v":59.085000000000001},{"$f":"H72","v":59.085000000000001},{"$f":"H72","v":59.085000000000001}]
["R452B",{"$f":"IF(IF(2.5*LFL452B^(5/4)*HF*A_2^(1/2)>'QLAV & QLMV'!I73,'QLAV & QLMV'!I73,2.5*LFL452B^(5/4)*HF*A_2^(1/2))<'QLAV & QLMV'!J73,'QLAV & QLMV'!J73,IF(2.5*LFL452B^(5/4)*HF*A_2^(1/2)>'QLAV & QLMV'!I73,'QLAV & QLMV'!I73,2.5*LFL452B^(5/4)*HF*A_2^(1/2)))","v":12.09},12.09,12.09,{"$f":"IF(2.5*LFL452B^(5/4)*HF*A_2^(1/2)>'QLAV & QLMV'!I73,'QLAV & QLMV'!I73,2.5*LFL452B^(5/4)*HF*A_2^(1/2))","v":12.09},16.25,37.5,12.09,12.09,12.09,12.09,16.25,37.5,12.09,12.09,12.09,12.09,16.25,37.5,"No Charge Restriction","No Charge Restriction","No Charge Restriction",60.449999999999996,60.449999999999996,60.449999999999996]
["R32",{"$f":"IF(IF(2.5*LFL32a^(5/4)*HF*A_2^(1/2)>'QLAV & QLMV'!I74,'QLAV & QLMV'!I74,2.5*LFL32a^(5/4)*HF*A_2^(1/2))<'QLAV & QLMV'!J74,'QLAV & QLMV'!J74,IF(2.5*LFL32a^(5/4)*HF*A_2^(1/2)>'QLAV & QLMV'!I74,'QLAV & QLMV'!I74,2.5*LFL32a^(5/4)*HF*A_2^(1/2)))","v":11.973000000000001},11.973000000000001,11.973000000000001,{"$f":"IF(2.5*LFL32a^(5/4)*HF*A_2^(1/2)>'QLAV & QLMV'!I74,'QLAV & QLMV'!I74,2.5*LFL32a^(5/4)*HF*A_2^(1/2))","v":11.973000000000001},15.75,37.5,11.973000000000001,11.973000000000001,11.973000000000001,11.973000000000001,15.75,37.5,11.973000000000001,11.973000000000001,11.973000000000001,11.973000000000001,15.75,37.5,"No Charge Restriction","No Charge Restriction","No Charge Restriction",59.864999999999995,59.864999999999995,59.864999999999995]
["R455A",{"$f":"IF(IF(2.5*LFL455A^(5/4)*HF*A_2^(1/2)>'QLAV & QLMV'!I75,'QLAV & QLMV'!I75,2.5*LFL455A^(5/4)*HF*A_2^(1/2))<'QLAV & QLMV'!J75,'QLAV & QLMV'!J75,IF(2.5*LFL455A^(5/4)*HF*A_2^(1/2)>'QLAV & QLMV'!I75,'QLAV & QLMV'!I75,2.5*LFL455A^(5/4)*HF*A_2^(1/2)))","v":16.808999999999997},16.808999999999997,16.808999999999997,{"$f":"IF(2.5*LFL455A^(5/4)*HF*A_2^(1/2)>'QLAV & QLMV'!I75,'QLAV & QLMV'!I75,2.5*LFL455A^(5/4)*HF*A_2^(1/2))","v":16.808999999999997},23,52.5,16.808999999999997,16.808999999999997,16.808999999999997,16.808999999999997,23,52.5,16.808999999999997,16.808999999999997,16.808999999999997,16.808999999999997,23,52.5,"No Charge Restriction","No Charge Restriction","No Charge Restriction",84.045000000000002,84.045000000000002,84.045000000000002]
["R152a"]
["R1234yf",{"$f":"IF(IF(2.5*LFL1234yf^(5/4)*HF*A_2^(1/2)>'QLAV & QLMV'!I77,'QLAV & QLMV'!I77,2.5*LFL1234yf^(5/4)*HF*A_2^(1/2))<'QLAV & QLMV'!J77,'QLAV & QLMV'!J77,IF(2.5*LFL1234yf^(5/4)*HF*A_2^(1/2)>'QLAV & QLMV'!I77,'QLAV & QLMV'!I77,2.5*LFL1234yf^(5/4)*HF*A_2^(1/2)))","v":11.270999999999999},{"$f":"B88","v":11.270999999999999},{"$f":"B88","v":11.270999999999999},{"$f":"IF(2.5*LFL1234yf^(5/4)*HF*A_2^(1/2)>'QLAV & QLMV'!I77,'QLAV & QLMV'!I77,2.5*LFL1234yf^(5/4)*HF*A_2^(1/2))","v":11.270999999999999},{"$f":"IF(IF(K77>H77,H77,K77)<J77,J77,IF(K77>H77,H77,K77))","v":15},{"$f":"IF(IF(L77>H77,H77,L77)<J77,J77,IF(L77>H77,H77,L77))","v":35},{"$f":"B88","v":11.270999999999999},{"$f":"C88","v":11.270999999999999},{"$f":"D88","v":11.270999999999999},{"$f":"E88","v":11.270999999999999},{"$f":"F88","v":15},{"$f":"G88","v":35},{"$f":"B88","v":11.270999999999999},{"$f":"C88","v":11.270999999999999},{"$f":"D88","v":11.270999999999999},{"$f":"E88","v":11.270999999999999},{"$f":"F88","v":15},{"$f":"G88","v":35},"No Charge Restriction","No Charge Restriction","No Charge Restriction",56.355000000000004,56.355000000000004,56.355000000000004]
["R1234ze",{"$f":"IF(IF(2.5*LFL1234ze^(5/4)*HF*A_2^(1/2)>'QLAV & QLMV'!I78,'QLAV & QLMV'!I78,2.5*LFL1234ze^(5/4)*HF*A_2^(1/2))<'QLAV & QLMV'!J78,'QLAV & QLMV'!J78,IF(2.5*LFL1234ze^(5/4)*HF*A_2^(1/2)>'QLAV & QLMV'!I78,'QLAV & QLMV'!I78,2.5*LFL1234ze^(5/4)*HF*A_2^(1/2)))","v":11.817},11.817,{"$f":"B89","v":11.817},{"$f":"IF(2.5*LFL1234ze^(5/4)*HF*A_2^(1/2)>'QLAV & QLMV'!I78,'QLAV & QLMV'!I78,2.5*LFL1234ze^(5/4)*HF*A_2^(1/2))","v":11.817},{"$f":"IF(IF(K78>H78,H78,K78)<J78,J78,IF(K78>H78,H78,K78))","v":15.75},{"$f":"IF(IF(L78>H78,H78,L78)<J78,J78,IF(L78>H78,H78,L78))","v":37.5},{"$f":"B89","v":11.817},{"$f":"C89","v":11.817},{"$f":"D89","v":11.817},{"$f":"E89","v":11.817},{"$f":"F89","v":15.75},{"$f":"G89","v":37.5},{"$f":"B89","v":11.817},{"$f":"C89","v":11.817},{"$f":"D89","v":11.817},{"$f":"E89","v":11.817},{"$f":"F89","v":15.75},{"$f":"G89","v":37.5},"No Charge Restriction","No Charge Restriction","No Charge Restriction",59.085000000000001,59.085000000000001,59.085000000000001]
["Result",{"$f":"IF($P$70=\"HCa11\",B81,IF($P$70=\"HCa12\",B82,IF($P$70=\"HCa13\",B83,IF($P$70=\"HCa14\",B84,IF($P$70=\"HCa15\",B85,IF($P$70=\"HCa16\",B86,IF($P$70=\"HCa17\",B87,IF($P$70=\"HCa18\",B88,IF($P$70=\"HCa19\",B89)))))))))","v":11.427},{"$f":"B90","v":11.427},{"$f":"B90","v":11.427},{"$f":"IF($P$70=\"HCa21\",E81,IF($P$70=\"HCa22\",E82,IF($P$70=\"HCa23\",E83,IF($P$70=\"HCa24\",E84,IF($P$70=\"HCa25\",E85,IF($P$70=\"HCa26\",E86,IF($P$70=\"HCa27\",E87,IF($P$70=\"HCa28\",E88,IF($P$70=\"HCa29\",E89)))))))))","v":false},{"$f":"IF($P$70=\"HCa21\",F81,IF($P$70=\"HCa22\",F82,IF($P$70=\"HCa23\",F83,IF($P$70=\"HCa24\",F84,IF($P$70=\"HCa25\",F85,IF($P$70=\"HCa26\",F86,IF($P$70=\"HCa27\",F87,IF($P$70=\"HCa28\",F88,IF($P$70=\"HCa29\",F89)))))))))","v":false},{"$f":"IF($P$70=\"HCa21\",G81,IF($P$70=\"HCa22\",G82,IF($P$70=\"HCa23\",G83,IF($P$70=\"HCa24\",G84,IF($P$70=\"HCa25\",G85,IF($P$70=\"HCa26\",G86,IF($P$70=\"HCa27\",G87,IF($P$70=\"HCa28\",G88,IF($P$70=\"HCa29\",G89)))))))))","v":false},{"$f":"IF($P$70=\"HCb11\",H81,IF($P$70=\"HCb12\",H82,IF($P$70=\"HCb13\",H83,IF($P$70=\"HCb14\",H84,IF($P$70=\"HCb15\",H85,IF($P$70=\"HCb16\",H86,IF($P$70=\"HCb17\",H87,IF($P$70=\"HCb18\",H88,IF($P$70=\"HCb19\",H89)))))))))","v":false},{"$f":"H90","v":false},{"$f":"H90","v":false},{"$f":"IF($P$70=\"HCb21\",K81,IF($P$70=\"HCb22\",K82,IF($P$70=\"HCb23\",K83,IF($P$70=\"HCb24\",K84,IF($P$70=\"HCb25\",K85,IF($P$70=\"HCb26\",K86,IF($P$70=\"HCb27\",K87,IF($P$70=\"HCb28\",K88,IF($P$70=\"HCb29\",K89)))))))))","v":false},{"$f":"IF($P$70=\"HCb21\",L81,IF($P$70=\"HCb22\",L82,IF($P$70=\"HCb23\",L83,IF($P$70=\"HCb24\",L84,IF($P$70=\"HCb25\",L85,IF($P$70=\"HCb26\",L86,IF($P$70=\"HCb27\",L87,IF($P$70=\"HCb28\",L88,IF($P$70=\"HCb29\",L89)))))))))","v":false},{"$f":"IF($P$70=\"HCb21\",M81,IF($P$70=\"HCb22\",M82,IF($P$70=\"HCb23\",M83,IF($P$70=\"HCb24\",M84,IF($P$70=\"HCb25\",M85,IF($P$70=\"HCb26\",M86,IF($P$70=\"HCb27\",M87,IF($P$70=\"HCb28\",M88,IF($P$70=\"HCb29\",M89)))))))))","v":false},{"$f":"IF($P$70=\"HCc11\",N81,IF($P$70=\"HCc12\",N82,IF($P$70=\"HCc13\",N83,IF($P$70=\"HCc14\",N84,IF($P$70=\"HCc15\",N85,IF($P$70=\"HCc16\",N86,IF($P$70=\"HCc17\",N87,IF($P$70=\"HCc18\",N88,IF($P$70=\"HCc19\",N89)))))))))","v":false},{"$f":"N90","v":false},{"$f":"N90","v":false},{"$f":"IF($P$70=\"HCc21\",Q81,IF($P$70=\"HCc22\",Q82,IF($P$70=\"HCc23\",Q83,IF($P$70=\"HCc24\",Q84,IF($P$70=\"HCc25\",Q85,IF($P$70=\"HCc26\",Q86,IF($P$70=\"HCc27\",Q87,IF($P$70=\"HCc28\",Q88,IF($P$70=\"HCc29\",Q89)))))))))","v":false},{"$f":"IF($P$70=\"HCc21\",R81,IF($P$70=\"HCc22\",R82,IF($P$70=\"HCc23\",R83,IF($P$70=\"HCc24\",R84,IF($P$70=\"HCc25\",R85,IF($P$70=\"HCc26\",R86,IF($P$70=\"HCc27\",R87,IF($P$70=\"HCc28\",R88,IF($P$70=\"HCc29\",R89)))))))))","v":false},{"$f":"IF($P$70=\"HCc21\",S81,IF($P$70=\"HCc22\",S82,IF($P$70=\"HCc23\",S83,IF($P$70=\"HCc24\",S84,IF($P$70=\"HCc25\",S85,IF($P$70=\"HCc26\",S86,IF($P$70=\"HCc27\",S87,IF($P$70=\"HCc28\",S88,IF($P$70=\"HCc29\",S89)))))))))","v":false},"No Charge Restriction","No Charge Restriction","No Charge Restriction",{"$f":"IF($P$70=\"HCa41\",W81,IF($P$70=\"HCa42\",W82,IF($P$70=\"HCa43\",W83,IF($P$70=\"HCa44\",W84,IF($P$70=\"HCa45\",W85,IF($P$70=\"HCa46\",W86,IF($P$70=\"HCa47\",W87,IF($P$70=\"HCa48\",W88,IF($P$70=\"HCa49\",W89)))))))))","v":false},{"$f":"IF($P$70=\"HCb41\",X81,IF($P$70=\"HCb42\",X82,IF($P$70=\"HCb43\",X83,IF($P$70=\"HCb44\",X84,IF($P$70=\"HCb45\",X85,IF($P$70=\"HCb46\",X86,IF($P$70=\"HCb47\",X87,IF($P$70=\"HCb48\",X88,IF($P$70=\"HCb49\",X89)))))))))","v":false},{"$f":"IF($P$70=\"HCc41\",Y81,IF($P$70=\"HCc42\",Y82,IF($P$70=\"HCc43\",Y83,IF($P$70=\"HCc44\",Y84,IF($P$70=\"HCc45\",Y85,IF($P$70=\"HCc46\",Y86,IF($P$70=\"HCc47\",Y87,IF($P$70=\"HCc48\",Y88,IF($P$70=\"HCc49\",Y89)))))))))","v":false}]
[null,null,{"$f":"IF($A$65=\"HCa1\",C90,\"N/A\")","v":11.427},{"$f":"IF($A$65=\"HCa1\",D90,\"N/A\")","v":11.427},null,{"$f":"IF($A$65=\"HCa2\",F90,\"N/A\")","v":"N/A"},{"$f":"IF($A$65=\"HCa2\",G90,\"N/A\")","v":"N/A"},null,{"$f":"IF($A$65=\"HCb1\",I90,\"N/A\")","v":"N/A"},{"$f":"IF($A$65=\"HCb1\",J90,\"N/A\")","v":"N/A"},null,{"$f":"IF($A$65=\"HCb2\",L90,\"N/A\")","v":"N/A"},{"$f":"IF($A$65=\"HCb2\",M90,\"N/A\")","v":"N/A"},null,{"$f":"IF($A$65=\"HCc1\",O90,\"N/A\")","v":"N/A"},{"$f":"IF($A$65=\"HCc1\",P90,\"N/A\")","v":"N/A"},null,{"$f":"IF($A$65=\"HCc2\",R90,\"N/A\")","v":"N/A"},{"$f":"IF($A$65=\"HCc2\",S90,\"N/A\")","v":"N/A"},"N/A","N/A","N/A","N/A","N/A","N/A"]
[]
[]
[]
[]
[]
[]
[]
[null,{"$f":"'Template Cold Room (ab. ground)'!D23","v":"R455A"},{"$f":"IF(B99=\"R454c\",C31,IF(B99=\"R454A\",C32,IF(B99=\"R454B\",C33,IF(B99=\"R452B\",C34,IF(B99=\"R32\",C35,IF(B99=\"R455A\",C36,IF(B99=\"R1234yf\",C38,IF(B99=\"R1234ze\",C39,\"\"))))))))","v":9.1999999999999998E-2},{"$f":"IF(B99=\"R454c\",D31,IF(B99=\"R454A\",D32,IF(B99=\"R454B\",D33,IF(B99=\"R452B\",D34,IF(B99=\"R32\",D35,IF(B99=\"R455A\",D36,IF(B99=\"R1234yf\",D38,IF(B99=\"R1234ze\",D39,\"\"))))))))","v":0.21},{"$f":"'Template Cold Room (ab. ground)'!D41/'Template Cold Room (ab. ground)'!D37","v":4.0000000000000001E-3},{"$f":"IF(E99<=C99,C99,D99)","v":9.1999999999999998E-2},{"$f":"'Template Cold Room (ab. ground)'!D37*F99","v":460},{"$f":"130*LFLL*1.5","v":84.045000000000002},{"$f":"26*LFLL*1.5","v":16.808999999999997},{"$f":"4*LFLL*1.5","v":2.5859999999999999},{"$f":"'Template Cold Room (ab. ground)'!D37*C99","v":460},{"$f":"'Template Cold Room (ab. ground)'!D37*D99","v":1050},{"$f":"IF(L99>H99,H99,L99)","v":84.045000000000002}]
[null,"C1","QLMV","QLAV"]
["Sealed",{"$f":"IF(IF(0.2*LFLL*'Template Cold Room (ab. ground)'!D37>I99,I99,0.2*LFLL*'Template Cold Room (ab. ground)'!D37)<J99,J99,IF(0.2*LFLL*'Template Cold Room (ab. ground)'!D37>I99,I99,0.2*LFLL*'Template Cold Room (ab. ground)'!D37))","v":16.808999999999997},{"$f":"B101","v":16.808999999999997},{"$f":"IF(IF(L99>H99,H99,L99)<J99,L99,IF(L99>H99,H99,L99))","v":84.045000000000002}]
["Non Sealed",{"$f":"0.2*LFLL*'Template Cold Room (ab. ground)'!D37","v":431},{"$f":"IF(IF(K99>H99,H99,K99)<J99,K99,IF(K99>H99,H99,K99))","v":84.045000000000002},{"$f":"IF(IF(L99>H99,H99,L99)<J99,L99,IF(L99>H99,H99,L99))","v":84.045000000000002}]